Workbook

Sheet Contents
C1: Go to Charts by Pressing Shift and Enter on Menu Item
C3: Sheet Tab | D3: Description | E3: Author
B4: 1 | C4: Sheet2
B5: 2 | C5: Points
B6: 3 | C6: Scenario Analysis
B7: 4 | C7: Financial Ratio Output
B8: 5 | C8: Assumptions
B9: 6 | C9: Financial Model
B10: 7 | C10: Project Analysis
B11: 8 | C11: Depreciation and Retirement
B12: 9 | C12: Tornado Diagram
B13: 10 | C13: Marginal Price Function

Sheet Points
C4: Separate New and Existing Asses
C5: Use Dynamic Goal Seek to Find EBITDA on New Assets
C6: Compute Retirements with Goal Seek
C7: Use Flexible Assumption Techniques
C8: Assumptions in Different Sheet
C9: Review Historic Switch

Sheet Scenario Analysis
T1: Start Row | U1: =ROW(M12) -> 12
C2: Base for Comparison | F2: 1 | G2: =INDEX($C$12:$C$15,F2) -> Base Case | I2: Planes Added | T2: End Row | U2: =ROW(M24) -> 24
C3: Sensitivity Case | F3: 2 | G3: =INDEX($C$12:$C$15,F3) -> Low Case | T3: Start Col | U3: =COLUMN(O11) -> 15
T4: End Col | U4: =COLUMN(V11) -> 22
T5: Outputs Row | U5: =ROW(O11) -> 11
T6: Inputs Col | U6: =COLUMN(M12) -> 13
C7: Scenario Num | D7: 7 | O7: ='Financial Model'!C312 -> EPS
D9: 1 | E9: 2 | F9: 3 | G9: 4 | H9: 5 | I9: 6 | J9: 7 | K9: 8 | L9: 9 | O9: 1998 | P9: =O9+1 -> 1999 | Q9: =P9+1 -> 2000 | R9: 2001 | S9: 2002 | T9: 2003 | U9: 2004 | V9: 2005
D10: Flight Hours per Existing Plane | E10: Capital Expenditure Efficiency | F10: Cost of New Planes | G10: IRR on New Planes | H10: Logistics Growth | I10: Logistics Margin | J10: Admin Expense Percent | K10: Interest Expense Rate | L10: Interest Income Rate | O10: =$O$7&" "&O9 -> EPS 1998 | P10: =$O$7&" "&P9 -> EPS 1999 | Q10: EPS 2000 | R10: EPS 2001 | S10: EPS 2002 | T10: EPS 2003 | U10: EPS 2004 | V10: EPS 2005
N11: =C30 -> Cost of New Planes Low Case vs Base Case | O11: ='Financial Model'!O315 -> 1.738686678 | P11: ='Financial Model'!P315 -> 1.527009775 | Q11: ='Financial Model'!Q315 -> 1.669267067 | R11: ='Financial Model'!R315 -> 1.613711639 | S11: ='Financial Model'!S315 -> 2.386256327 | T11: ='Financial Model'!T315 -> 3.3641074 | U11: ='Financial Model'!U315 -> 4.608961627 | V11: ='Financial Model'!V315 -> 6.18792815
C12: Base Case | D12: 1100 | E12: 1 | F12: 1 | G12: 0.13 | H12: 0.02 | I12: 0.08 | J12: 0.05 | K12: 0.07 | L12: 0.02 | M12: 1 | N12: =C12 -> Base Case | O12: 1.738686678 | P12: 2.277941671 | Q12: 2.965486821 | R12: 3.859541732 | S12: 4.999043437 | T12: 6.475900197 | U12: 8.509102757 | V12: 11.45573545
C13: Low Case | D13: 1000 | E13: 1.1 | F13: 2 | G13: 0.06 | H13: -0.01 | I13: 0.06 | J13: 0.07 | K13: 0.08 | L13: 0.01 | M13: 2 | O13: 0.771816815 | P13: 0.3722736332 | Q13: 0.2088922007 | R13: -0.07435316985 | S13: 0.07816928098 | T13: 0.2391244716 | U13: 0.4171880102 | V13: 0.6208611148
C14: High Case | D14: 1200 | E14: 0.9 | F14: 3 | G14: 0.18 | H14: 0.04 | I14: 0.09 | J14: 0.04 | K14: 0.06 | L14: 0.03 | M14: 3 | O14: 2.519928225 | P14: 3.818546677 | Q14: 5.563978813 | R14: 8.039094185 | S14: 11.76977782 | T14: 17.99656077 | U14: 30.29588529 | V14: 65.36496566
C15: Worst Case | D15: 900 | E15: 0.9 | F15: 1 | G15: 0.05 | H15: -0.01 | I15: 0.06 | J15: 0.07 | K15: 0.09 | L15: 0.01 | M15: 4 | O15: 3.877214045 | P15: 4.237751377 | Q15: 4.63360124 | R15: 5.082336244 | S15: 5.615384399 | T15: 6.257564347 | U15: 7.039462832 | V15: 8.003612548
B16: 1 | C16: =TRANSPOSE(D10:L10)&" "&G3&" vs "&G2 -> Flight Hours per Existing Plane Low Case vs Base Case | D16: =IF(D$9=$B16,OFFSET(D$11,$F$3,0),OFFSET(D$11,$F$2,0)) -> 1000 | E16: =IF(E$9=$B16,OFFSET(E$11,$F$3,0),OFFSET(E$11,$F$2,0)) -> 1 | F16: 1 | G16: 0.13 | H16: 0.02 | I16: 0.08 | J16: 0.05 | K16: 0.07 | L16: 0.02 | M16: 5 | O16: 1.427710437 | P16: 1.940584319 | Q16: 2.598035742 | R16: 3.458661585 | S16: 4.560471004 | T16: 5.968107252 | U16: 7.882387536 | V16: 10.61965167
B17: 2 | C17: Capital Expenditure Efficiency Low Case vs Base Case | D17: 1100 | E17: 1.1 | F17: 1 | G17: 0.13 | H17: 0.02 | I17: 0.08 | J17: 0.05 | K17: 0.07 | L17: 0.02 | M17: 6 | O17: 1.670312367 | P17: 2.125847526 | Q17: 2.709139139 | R17: 3.472287726 | S17: 4.448087335 | T17: 5.645549979 | U17: 7.37396662 | V17: 9.713092244
B18: 3 | C18: Cost of New Planes Low Case vs Base Case | D18: 1100 | E18: 1 | F18: 2 | G18: 0.13 | H18: 0.02 | I18: 0.08 | J18: 0.05 | K18: 0.07 | L18: 0.02 | M18: 7 | O18: 1.738686678 | P18: 1.527009775 | Q18: 1.669267067 | R18: 1.613711639 | S18: 2.386256327 | T18: 3.3641074 | U18: 4.608961627 | V18: 6.18792815
B19: 4 | C19: IRR on New Planes Low Case vs Base Case | D19: 1100 | E19: 1 | F19: 1 | G19: 0.06 | H19: 0.02 | I19: 0.08 | J19: 0.05 | K19: 0.07 | L19: 0.02 | M19: 8 | O19: 1.671328209 | P19: 1.855558756 | Q19: 2.083656942 | R19: 2.378860934 | S19: 2.750715853 | T19: 3.218981321 | U19: 3.805483144 | V19: 4.536960699
B20: 5 | C20: Logistics Growth Low Case vs Base Case | D20: 1100 | E20: 1 | F20: 1 | G20: 0.13 | H20: -0.01 | I20: 0.08 | J20: 0.05 | K20: 0.07 | L20: 0.02 | M20: 9 | O20: 1.729220357 | P20: 2.2633207 | Q20: 2.945116669 | R20: 3.832722392 | S20: 4.965011548 | T20: 6.431157115 | U20: 8.448484864 | V20: 11.3689679
B21: 6 | C21: Logistics Margin Low Case vs Base Case | D21: 1100 | E21: 1 | F21: 1 | G21: 0.13 | H21: 0.02 | I21: 0.06 | J21: 0.05 | K21: 0.07 | L21: 0.02 | M21: 10 | O21: 1.556559506 | P21: 2.074090502 | Q21: 2.735370925 | R21: 3.597909494 | S21: 4.699165768 | T21: 6.10790149 | U21: 8.030234903 | V21: 10.78362612
B22: 7 | C22: Admin Expense Percent Low Case vs Base Case | D22: 1100 | E22: 1 | F22: 1 | G22: 0.13 | H22: 0.02 | I22: 0.08 | J22: 0.07 | K22: 0.07 | L22: 0.02 | M22: 11 | O22: 1.359095888 | P22: 1.851138792 | Q22: 2.481268571 | R22: 3.306524548 | S22: 4.362776196 | T22: 5.711920446 | U22: 7.52172787 | V22: 10.08273444
B23: 8 | C23: Interest Expense Rate Low Case vs Base Case | D23: 1100 | E23: 1 | F23: 1 | G23: 0.13 | H23: 0.02 | I23: 0.08 | J23: 0.05 | K23: 0.08 | L23: 0.02 | M23: 12 | O23: 1.738686678 | P23: 2.277941671 | Q23: 2.965486821 | R23: 3.859541732 | S23: 4.999043437 | T23: 6.475900197 | U23: 8.509102757 | V23: 11.45573545
B24: 9 | C24: Interest Income Rate Low Case vs Base Case | D24: 1100 | E24: 1 | F24: 1 | G24: 0.13 | H24: 0.02 | I24: 0.08 | J24: 0.05 | K24: 0.07 | L24: 0.01 | M24: 13 | O24: 1.736946046 | P24: 2.275661957 | Q24: 2.962519419 | R24: 3.855680146 | S24: 4.994042236 | T24: 6.469066995 | U24: 8.499403392 | V24: 11.44124267
C30: =INDEX(C12:C24,$D$7) -> Cost of New Planes Low Case vs Base Case | D30: =INDEX(D12:D24,$D$7) -> 1100 | E30: =INDEX(E12:E24,$D$7) -> 1 | F30: =INDEX(F12:F24,$D$7) -> 2 | G30: 0.13 | H30: 0.02 | I30: 0.08 | J30: 0.05 | K30: 0.07 | L30: 0.02
C33: Year | D33: =Q9 -> 2000
C34: Base | D34: =O9 -> 1998
C35: Cols to Move | D35: =D33-D34 -> 2
D37: =" Tornado Diagram for " &OFFSET(O10,0,D35) -> Tornado Diagram for EPS 2000
C38: =C16 -> Flight Hours per Existing Plane Low Case vs Base Case | D38: =OFFSET(O16,0,$D$35)-OFFSET($O$11,$F$2,$D$35) -> -0.3674510795
C39: =C17 -> Capital Expenditure Efficiency Low Case vs Base Case | D39: =OFFSET(O17,0,$D$35)-OFFSET($O$11,$F$2,$D$35) -> -0.2563476823
C40: Cost of New Planes Low Case vs Base Case | D40: -1.296219754
C41: IRR on New Planes Low Case vs Base Case | D41: -0.8818298797
C42: Logistics Growth Low Case vs Base Case | D42: -0.02037015212
C43: Logistics Margin Low Case vs Base Case | D43: -0.2301158962
C44: Admin Expense Percent Low Case vs Base Case | D44: -0.4842182502
C45: Interest Expense Rate Low Case vs Base Case | D45: 0
C46: Interest Income Rate Low Case vs Base Case | D46: -0.00296740186

Sheet Assumptions
P1: nine mos | Q1: three mos
K2: 1992 | L2: 1993 | M2: 1994 | N2: 1995 | O2: 1996 | P2: 1997 | Q2: =P2 -> 1997 | R2: =Q2+1 -> 1998 | S2: =R2+1 -> 1999 | T2: 2000 | U2: 2001 | V2: 2002 | W2: 2003 | X2: 2004 | Y2: 2005
K3: 1 | L3: 1 | M3: 1 | N3: 1 | O3: 1 | P3: 0.72 | Q3: =1-P3 -> 0.28 | R3: 1 | S3: 1 | T3: 1 | U3: 1 | V3: 1 | W3: 1 | X3: 1 | Y3: 1
A4: Last Historic Period | K4: FALSE | L4: FALSE | M4: FALSE | N4: FALSE | O4: FALSE | P4: TRUE | Q4: FALSE | R4: FALSE | S4: FALSE | T4: FALSE | U4: FALSE | V4: FALSE | W4: FALSE | X4: FALSE | Y4: FALSE
A5: History | E5: Driver | F5: Average | G5: Last | H5: Input | I5: Applied | J5: Code | K5: TRUE | L5: TRUE | M5: TRUE | N5: TRUE | O5: TRUE | P5: TRUE | Q5: FALSE | R5: FALSE | S5: FALSE | T5: FALSE | U5: FALSE | V5: FALSE | W5: FALSE | X5: FALSE | Y5: FALSE
A7: Economics of Incremental Aircraft
B8: Economics of Added Planes
C9: Real Cost of New Planes
D10: Base Case Planes | H10: 6175 | K10: =$H$10 -> 6175 | L10: 6175 | M10: 6175 | N10: 6175 | O10: 6175 | P10: 6175 | Q10: 6175 | R10: 6175 | S10: 6175 | T10: 6175 | U10: 6175 | V10: 6175 | W10: 6175 | X10: 6175 | Y10: 6175
D11: Downside Case | K11: =K10*0.9 -> 5557.5 | L11: =L10 -> 6175 | M11: =M10 -> 6175 | N11: 6175 | O11: 6175 | P11: 6175 | Q11: 6175 | R11: 6175 | S11: =R11/1.2 -> 5145.833333 | T11: =S11/1.1 -> 4678.030303 | U11: =T11/1.15 -> 4067.852437 | V11: =U11 -> 4067.852437 | W11: =V11 -> 4067.852437 | X11: =W11 -> 4067.852437 | Y11: =X11 -> 4067.852437
D12: Upside Case | K12: =K10*1.1 -> 6792.5 | L12: =L11 -> 6175 | M12: 6175 | N12: 6175 | O12: 6175 | P12: 6175 | Q12: 6175 | R12: 6175 | S12: =R12*1.05 -> 6483.75 | T12: 6807.9375 | U12: 7148.334375 | V12: 7505.751094 | W12: 7881.038648 | X12: 8275.090581 | Y12: 8688.84511
D13: Cost of New Planes | J13: ='Scenario Analysis'!F30 -> 2 | K13: =INDEX(K10:K12,$J$13) -> 5557.5 | L13: 6175 | M13: 6175 | N13: 6175 | O13: 6175 | P13: 6175 | Q13: 6175 | R13: 6175 | S13: 5145.833333 | T13: 4678.030303 | U13: 4067.852437 | V13: 4067.852437 | W13: 4067.852437 | X13: 4067.852437 | Y13: 4067.852437
C15: Inflation Rate for Incremental Aircraft | H15: 0.03 | K15: =IF(NOT(K$5),$H$15) -> FALSE | L15: =IF(NOT(L5),$H$15) -> FALSE | M15: FALSE | N15: FALSE | O15: FALSE | P15: FALSE | Q15: 0.03 | R15: 0.03 | S15: 0.03 | T15: 0.03 | U15: 0.03 | V15: 0.03 | W15: 0.03 | X15: 0.03 | Y15: 0.03
C16: Inflation Index for Incremental Aircraft | K16: =IF(K5,1,J16*(1+K15)) -> 1 | L16: 1 | M16: 1 | N16: 1 | O16: 1 | P16: 1 | Q16: 1.03 | R16: 1.0609 | S16: 1.092727 | T16: 1.12550881 | U16: 1.159274074 | V16: 1.194052297 | W16: 1.229873865 | X16: 1.266770081 | Y16: 1.304773184
C17: Inflated Cost of Converted Aircraft | K17: =K13*K16 -> 5557.5 | L17: =L13*L16 -> 6175 | M17: 6175 | N17: 6175 | O17: 6175 | P17: 6175 | Q17: 6360.25 | R17: 6551.0575 | S17: 5622.991021 | T17: 5265.16432 | U17: 4715.755869 | V17: 4857.228545 | W17: 5002.945401 | X17: 5153.033763 | Y17: 5307.624776
C19: IRR on Marginal Aircraft | H19: ='Scenario Analysis'!G30 -> 0.13 | K19: =$H$19 -> 0.13 | L19: =$H$19 -> 0.13 | M19: 0.13 | N19: 0.13 | O19: 0.13 | P19: 0.13 | Q19: 0.13 | R19: 0.13 | S19: 0.13 | T19: 0.13 | U19: 0.13 | V19: 0.13 | W19: 0.13 | X19: 0.13 | Y19: 0.13
C20: Plane Life | H20: 10 | K20: =$H$20 -> 10 | L20: 10 | M20: 10 | N20: 10 | O20: 10 | P20: 10 | Q20: 10 | R20: 10 | S20: 10 | T20: 10 | U20: 10 | V20: 10 | W20: 10 | X20: 10 | Y20: 10
C21: Incremental Tax Rate for Plane Economics | H21: 0.4 | K21: =$H$21 -> 0.4 | L21: 0.4 | M21: 0.4 | N21: 0.4 | O21: 0.4 | P21: 0.4 | Q21: 0.4 | R21: 0.4 | S21: 0.4 | T21: 0.4 | U21: 0.4 | V21: 0.4 | W21: 0.4 | X21: 0.4 | Y21: 0.4
C22: EBITDA per Single Plane from Function | K22: =ebitda_plane(K20,K19,K17,K15,K21) -> 1336.49873 | L22: 1484.998588 | M22: 1484.998588 | N22: 1484.998588 | O22: 1484.998588 | P22: 1484.998588 | Q22: 1373.924134 | R22: 1415.141858 | S22: 1214.663428 | T22: 1137.366665 | U22: 1018.684926 | V22: 1049.245474 | W22: 1080.722838 | X22: 1113.144523 | Y22: 1146.538859
C24: Capacity Factor of converted aircraft | H24: 0.17 | K24: =$H$24 -> 0.17 | L24: =$H$24 -> 0.17 | M24: 0.17 | N24: 0.17 | O24: 0.17 | P24: 0.17 | Q24: 0.17 | R24: 0.17 | S24: 0.17 | T24: 0.17 | U24: 0.17 | V24: 0.17 | W24: 0.17 | X24: 0.17 | Y24: 0.17
C25: Hours of Operation per aircraft | H25: 8760 | K25: =K24*$H$25 -> 1489.2 | L25: =L24*$H$25 -> 1489.2 | M25: 1489.2 | N25: 1489.2 | O25: 1489.2 | P25: 1489.2 | Q25: 1489.2 | R25: 1489.2 | S25: 1489.2 | T25: 1489.2 | U25: 1489.2 | V25: 1489.2 | W25: 1489.2 | X25: 1489.2 | Y25: 1489.2
C26: Operating Cost of New Planes/Hour | K26: =K55 -> 1.114564059 | L26: 0.7311237553 | M26: 1.592115303 | N26: 1.686820786 | O26: 1.619113505 | P26: 1.416614412 | Q26: 1.459112845 | R26: 1.50288623 | S26: 1.547972817 | T26: 1.594412001 | U26: 1.642244361 | V26: 1.691511692 | W26: 1.742257043 | X26: 1.794524754 | Y26: 1.848360497
C27: EBITDA per hour for marginal converted planes | K27: =K22/K25 -> 0.8974608713 | L27: =L22/L25 -> 0.9971787459 | M27: 0.9971787459 | N27: 0.9971787459 | O27: 0.9971787459 | P27: 0.9971787459 | Q27: 0.9225920858 | R27: 0.9502698484 | S27: 0.8156482865 | T27: 0.7637433956 | U27: 0.6840484326 | V27: 0.7045698855 | W27: 0.7257069821 | X27: 0.7474781916 | Y27: 0.7699025373
C28: Marginal price per hour including administrative | H28: =I100+I104 -> 0.0582 | K28: =(K26+K27)*(1+$H$28) -> 2.129124782 | L28: =(L26+L27)*(1+$H$28) -> 1.828889707 | M28: 2.739990963 | N28: 2.840208305 | O28: 2.76856046 | P28: 2.55427592 | Q28: 2.520320157 | R28: 2.595929762 | S28: 2.501183852 | T28: 2.495400041 | U28: 2.461683034 | V28: 2.535533526 | W28: 2.611599531 | X28: 2.689947517 | Y28: 2.770645943
Q29: =Q28/P28-1 -> -0.01329369403 | R29: =R28/Q28-1 -> 0.03 | S29: =S28/R28-1 -> -0.03649787135 | T29: -0.0023124292 | U29: -0.01351166383 | V29: 0.03 | W29: 0.03 | X29: 0.03 | Y29: 0.03
A30: Existing Aircraft
B31: Existing Aircraft Analysis
C32: Opening Balance | K32: 11 | L32: =K35 -> 11 | M32: 10 | N32: 15 | O32: 22 | P32: 25 | Q32: 26 | R32: 25.18527711 | S32: 24.24834578 | T32: 23.17087476 | U32: 21.93178308 | V32: 20.50682765 | W32: 18.86812891 | X32: 16.98362535 | Y32: 14.81644627
C33: New Planes Added | K33: =IF(K5,K35-K32+K34) -> 3 | L33: 3 | M33: 5 | N33: 7 | O33: 3 | P33: 1 | Q33: FALSE | R33: FALSE | S33: FALSE | T33: FALSE | U33: FALSE | V33: FALSE | W33: FALSE | X33: FALSE | Y33: FALSE
C34: Planes Retired from Depreciation Analysis | K34: 3 | L34: 4 | Q34: =$Q$32*'Depreciation and Retirement'!D15 -> 0.8147228914 | R34: =$Q$32*'Depreciation and Retirement'!E15 -> 0.9369313251 | S34: =$Q$32*'Depreciation and Retirement'!F15 -> 1.077471024 | T34: =$Q$32*'Depreciation and Retirement'!G15 -> 1.239091678 | U34: =$Q$32*'Depreciation and Retirement'!H15 -> 1.424955429 | V34: =$Q$32*'Depreciation and Retirement'!I15 -> 1.638698744 | W34: =$Q$32*'Depreciation and Retirement'!J15 -> 1.884503555 | X34: =$Q$32*'Depreciation and Retirement'!K15 -> 2.167179088 | Y34: =$Q$32*'Depreciation and Retirement'!L15 -> 2.492255952
C35: Closing Balance | K35: =IF(K5,'Financial Model'!H80,K32+K33-K34+K34) -> 11 | L35: =IF(L5,'Financial Model'!I80,L32+L33-L34) -> 10 | M35: =IF(M5,'Financial Model'!J80,M32+M33-M34) -> 15 | N35: =IF(N5,'Financial Model'!K80,N32+N33-N34) -> 22 | O35: =IF(O5,'Financial Model'!L80,O32+O33-O34) -> 25 | P35: =IF(P5,'Financial Model'!M80,P32+P33-P34) -> 26 | Q35: =IF(Q5,'Financial Model'!N80,Q32+Q33-Q34) -> 25.18527711 | R35: =IF(R5,'Financial Model'!O80,R32+R33-R34) -> 24.24834578 | S35: =IF(S5,'Financial Model'!P80,S32+S33-S34) -> 23.17087476 | T35: =IF(T5,'Financial Model'!Q80,T32+T33-T34) -> 21.93178308 | U35: =IF(U5,'Financial Model'!R80,U32+U33-U34) -> 20.50682765 | V35: =IF(V5,'Financial Model'!S80,V32+V33-V34) -> 18.86812891 | W35: =IF(W5,'Financial Model'!T80,W32+W33-W34) -> 16.98362535 | X35: =IF(X5,'Financial Model'!U80,X32+X33-X34) -> 14.81644627 | Y35: =IF(Y5,'Financial Model'!V80,Y32+Y33-Y34) -> 12.32419031
C36: Average Planes | K36: =AVERAGE(K35,K32) -> 11 | L36: =AVERAGE(L35,L32) -> 10.5 | M36: 12.5 | N36: 18.5 | O36: 23.5 | P36: 25.5 | Q36: 25.59263855 | R36: 24.71681145 | S36: 23.70961027 | T36: 22.55132892 | U36: 21.21930537 | V36: 19.68747828 | W36: =AVERAGE(W35,W32) -> 17.92587713 | X36: 15.90003581 | Y36: 13.57031829
B38: Historic Annualized Flight Hours | K38: =IF(K5,'Financial Model'!H81/K3) -> 3567 | L38: =IF(L5,'Financial Model'!I81/L3) -> 7030 | M38: =IF(M5,'Financial Model'!J81/M3) -> 11795 | N38: =IF(N5,'Financial Model'!K81/N3) -> 15183 | O38: =IF(O5,'Financial Model'!L81/O3) -> 20237 | P38: =IF(P5,'Financial Model'!M81/P3) -> 30433.33333 | Q38: =IF(Q5,'Financial Model'!N81/Q3) -> FALSE | R38: =IF(R5,'Financial Model'!O81/R3) -> FALSE | S38: =IF(S5,'Financial Model'!P81/S3) -> FALSE | T38: =IF(T5,'Financial Model'!Q81/T3) -> FALSE | U38: =IF(U5,'Financial Model'!R81/U3) -> FALSE | V38: =IF(V5,'Financial Model'!S81/V3) -> FALSE | W38: =IF(W5,'Financial Model'!T81/W3) -> FALSE | X38: =IF(X5,'Financial Model'!U81/X3) -> FALSE | Y38: =IF(Y5,'Financial Model'!V81/Y3) -> FALSE
B39: Flight Hours per Existing Plane | E39: 3 | F39: =AVERAGEIF(5:5,TRUE,39:39) -> 802.1187047 | G39: =AVERAGEIF(4:4,TRUE,39:39) -> 1193.464052 | H39: ='Scenario Analysis'!D30 -> 1100 | I39: =CHOOSE(E39,F39,G39,H39) -> 1100 | K39: =IF(K$5,K38/K36,$I39) -> 324.2727273 | L39: 669.5238095 | M39: 943.6 | N39: 820.7027027 | O39: 861.1489362 | P39: 1193.464052 | Q39: 1100 | R39: 1100 | S39: 1100 | T39: 1100 | U39: 1100 | V39: 1100 | W39: 1100 | X39: 1100 | Y39: 1100
B40: Total Existing Planes | K40: =K36 -> 11 | L40: 10.5 | M40: 12.5 | N40: 18.5 | O40: 23.5 | P40: 25.5 | Q40: 25.59263855 | R40: 24.71681145 | S40: 23.70961027 | T40: 22.55132892 | U40: 21.21930537 | V40: 19.68747828 | W40: 17.92587713 | X40: 15.90003581 | Y40: 13.57031829
B41: Existing Flight Hours | K41: =K39*K40*K3 -> 3567 | L41: 7030 | M41: 11795 | N41: 15183 | O41: 20237 | P41: 21912 | Q41: 7882.532675 | R41: 27188.49259 | S41: 26080.5713 | T41: 24806.46181 | U41: 23341.2359 | V41: 21656.22611 | W41: 19718.46485 | X41: 17490.03939 | Y41: 14927.35012
B43: Freight Revenues | K43: =IF(K5,'Financial Model'!H50/K3) -> 6760 | L43: =IF(L5,'Financial Model'!I50/L3) -> 12939 | M43: =IF(M5,'Financial Model'!J50/M3) -> 28285 | N43: =IF(N5,'Financial Model'!K50/N3) -> 41117 | O43: =IF(O5,'Financial Model'!L50/O3) -> 52922 | P43: =IF(P5,'Financial Model'!M50/P3) -> 77484.72222 | Q43: =IF(Q5,'Financial Model'!N50/Q3) -> FALSE | R43: =IF(R5,'Financial Model'!O50/R3) -> FALSE | S43: =IF(S5,'Financial Model'!P50/S3) -> FALSE | T43: =IF(T5,'Financial Model'!Q50/T3) -> FALSE | U43: =IF(U5,'Financial Model'!R50/U3) -> FALSE | V43: =IF(V5,'Financial Model'!S50/V3) -> FALSE | W43: =IF(W5,'Financial Model'!T50/W3) -> FALSE | X43: =IF(X5,'Financial Model'!U50/X3) -> FALSE | Y43: =IF(Y5,'Financial Model'!V50/Y3) -> FALSE
B44: Freight Revenue per Plane - Existing | K44: =K43/K36 -> 614.5454545 | L44: 1232.285714 | M44: 2262.8 | N44: 2222.540541 | O44: 2252 | P44: 3038.616558 | Q44: 0 | R44: 0 | S44: 0 | T44: 0 | U44: 0 | V44: 0 | W44: 0 | X44: 0 | Y44: 0
B45: Freight Revenue per Hour - Existing | K45: =IF(K5,K43/K38) -> 1.895149986 | L45: 1.840540541 | M45: 2.398050021 | N45: 2.708094579 | O45: 2.615110935 | P45: 2.546047828 | Q45: FALSE | R45: FALSE | S45: FALSE | T45: FALSE | U45: FALSE | V45: FALSE | W45: FALSE | X45: FALSE | Y45: FALSE
B46: Percent Increase in Price of Existing Aircraft | L46: =IF(L5,L45/K45-1,L28/K28-1) -> -0.02881536862 | M46: 0.3029052979 | N46: 0.1292902798 | O46: -0.03433544927 | P46: -0.0264092459 | Q46: -0.01329369403 | R46: 0.03 | S46: -0.03649787135 | T46: -0.0023124292 | U46: -0.01351166383 | V46: 0.03 | W46: 0.03 | X46: 0.03 | Y46: 0.03
B47: Price Applied for Existing Planes | K47: =IF(K5,K45,J47*(1+K46)) -> 1.895149986 | L47: 1.840540541 | M47: 2.398050021 | N47: 2.708094579 | O47: 2.615110935 | P47: 2.546047828 | Q47: 2.512201447 | R47: 2.58756749 | S47: 2.493126785 | T47: 2.487361606 | U47: 2.453753212 | V47: 2.527365808 | W47: 2.603186782 | X47: 2.681282386 | Y47: 2.761720858
B49: Revenues from Existing Aircraft | K49: =K47*K41 -> 6760 | L49: 12939 | M49: 28285 | N49: 41117 | O49: 52922 | P49: 55789 | Q49: 19802.50999 | R49: 70352.05954 | S49: 65022.17087 | T49: 61702.64069 | U49: 57273.63257 | V49: 54733.2054 | W49: 51330.84706 | X49: 46895.73455 | Y49: 41225.17417
B51: Operating Cost
C52: Operating Expenses for Freight | K52: ='Financial Model'!H53 -> 4866.65 | L52: ='Financial Model'!I53 -> 6059.8 | M52: ='Financial Model'!J53 -> 19550 | N52: ='Financial Model'!K53 -> 28104 | O52: ='Financial Model'!L53 -> 38760 | P52: ='Financial Model'!M53 -> 38075.855 | Q52: ='Financial Model'!N53 -> 0 | R52: ='Financial Model'!O53 -> 0 | S52: ='Financial Model'!P53 -> 0 | T52: ='Financial Model'!Q53 -> 0 | U52: ='Financial Model'!R53 -> 0 | V52: ='Financial Model'!S53 -> 0 | W52: ='Financial Model'!T53 -> 0 | X52: ='Financial Model'!U53 -> 0 | Y52: ='Financial Model'!V53 -> 0
C53: Less: Depreciation Expense | K53: =IF(K5,'Financial Model'!H77) -> 891 | L53: =IF(L5,'Financial Model'!I77) -> 920 | M53: =IF(M5,'Financial Model'!J77) -> 771 | N53: =IF(N5,'Financial Model'!K77) -> 2493 | O53: =IF(O5,'Financial Model'!L77) -> 5994 | P53: =IF(P5,'Financial Model'!M77) -> 7035 | Q53: =IF(Q5,'Financial Model'!N77) -> FALSE | R53: =IF(R5,'Financial Model'!O77) -> FALSE | S53: =IF(S5,'Financial Model'!P77) -> FALSE | T53: =IF(T5,'Financial Model'!Q77) -> FALSE | U53: =IF(U5,'Financial Model'!R77) -> FALSE | V53: =IF(V5,'Financial Model'!S77) -> FALSE | W53: =IF(W5,'Financial Model'!T77) -> FALSE | X53: =IF(X5,'Financial Model'!U77) -> FALSE | Y53: =IF(Y5,'Financial Model'!V77) -> FALSE
C54: Cash Operating Expense for Freight | K54: =K52-K53 -> 3975.65 | L54: =L52-L53 -> 5139.8 | M54: 18779 | N54: 25611 | O54: 32766 | P54: 31040.855 | Q54: 0 | R54: 0 | S54: 0 | T54: 0 | U54: 0 | V54: 0 | W54: 0 | X54: 0 | Y54: 0
C55: Operating Expense per Hour | H55: =H15 -> 0.03 | K55: =IF(K5,K54/K41,J55*(1+$H$55)) -> 1.114564059 | L55: 0.7311237553 | M55: 1.592115303 | N55: 1.686820786 | O55: 1.619113505 | P55: 1.416614412 | Q55: 1.459112845 | R55: 1.50288623 | S55: 1.547972817 | T55: 1.594412001 | U55: 1.642244361 | V55: 1.691511692 | W55: 1.742257043 | X55: 1.794524754 | Y55: 1.848360497
C57: Operating Costs for Existing Aircraft Fleet | K57: =K55*K41 -> 3975.65 | L57: 5139.8 | M57: 18779 | N57: 25611 | O57: 32766 | P57: 31040.855 | Q57: 11501.50467 | R57: 40861.21113 | S57: 40372.01542 | T57: 39551.72042 | U57: 38332.01305 | V57: 36631.75967 | W57: 34354.63425 | X57: 31386.30864 | Y57: 27591.12428
A59: Incremental Aircraft Added and Retired
B60: Incremental Fleet Size Assumptions
C61: Base Case Additions | Q61: 1 | R61: 4 | S61: =R61*1.1 -> 4.4 | T61: =S61*1.1 -> 4.84 | U61: 5.324 | V61: 5.8564 | W61: 6.44204 | X61: 7.086244 | Y61: 7.7948684
C62: High Aircraft Added | Q62: 2 | R62: 6 | S62: =R62*1.2 -> 7.2 | T62: =S62*1.2 -> 8.64 | U62: 10.368 | V62: 12.4416 | W62: 14.92992 | X62: 17.915904 | Y62: 21.4990848
C63: Low Aircraft Added | Q63: 1 | R63: 1 | S63: 1 | T63: 1 | U63: 1 | V63: 1 | W63: 1 | X63: 1 | Y63: 1
C64: No Aircraft Added | Q64: 0 | R64: 0 | S64: 0 | T64: 0 | U64: 0 | V64: 0 | W64: 0 | X64: 0 | Y64: 0
C65: =INDEX(C61:C64,$H$65) -> Base Case Additions | H65: 1 | Q65: =INDEX(Q61:Q64,$H$65) -> 1 | R65: 4 | S65: 4.4 | T65: 4.84 | U65: 5.324 | V65: 5.8564 | W65: 6.44204 | X65: 7.086244 | Y65: 7.7948684
B67: New Planes
C68: Opening Balance | K68: =J73 -> 0 | L68: =K73 -> 0 | M68: 0 | N68: 0 | O68: 0 | P68: 0 | Q68: 0 | R68: 1.814722891 | S68: 6.751654217 | T68: 12.22912524 | U68: 18.30821692 | V68: 25.05717235 | W68: 32.55227109 | X68: 40.87881465 | Y68: 50.13223773
C69: Replacement of New Planes | K69: =K72 -> 0 | L69: =L72 -> 0 | M69: 0 | N69: 0 | O69: 0 | P69: 0 | Q69: 0 | R69: 0 | S69: 0 | T69: 0 | U69: 0 | V69: 0 | W69: 0 | X69: 0 | Y69: 0
C70: Replacement of Existing Planes | K70: =NOT(K5)*K34 -> 0 | L70: 0 | M70: 0 | N70: 0 | O70: 0 | P70: 0 | Q70: 0.8147228914 | R70: 0.9369313251 | S70: 1.077471024 | T70: 1.239091678 | U70: 1.424955429 | V70: 1.638698744 | W70: 1.884503555 | X70: 2.167179088 | Y70: 2.492255952
C71: New Planes Added | K71: =K65+K69+K70 -> 0 | L71: 0 | M71: 0 | N71: 0 | O71: 0 | P71: 0 | Q71: 1.814722891 | R71: 4.936931325 | S71: 5.477471024 | T71: 6.079091678 | U71: 6.748955429 | V71: 7.495098744 | W71: 8.326543555 | X71: 9.253423088 | Y71: 10.28712435
C72: Planes Retired | J72: =H20 -> 10 | K72: =IF(NOT(K5),OFFSET(K71,0,-$J$72))*1 -> 0 | L72: 0 | M72: 0 | N72: 0 | O72: 0 | P72: 0 | Q72: 0 | R72: 0 | S72: 0 | T72: 0 | U72: 0 | V72: 0 | W72: 0 | X72: 0 | Y72: 0
C73: Closing Balance | K73: =K68+K71-K72 -> 0 | L73: =L68+L71-L72 -> 0 | M73: 0 | N73: 0 | O73: 0 | P73: 0 | Q73: 1.814722891 | R73: 6.751654217 | S73: 12.22912524 | T73: 18.30821692 | U73: 25.05717235 | V73: 32.55227109 | W73: 40.87881465 | X73: 50.13223773 | Y73: 60.41936209
C75: Incremental Operating Aircraft | K75: =J73 -> 0 | L75: =K73 -> 0 | M75: 0 | N75: 0 | O75: 0 | P75: 0 | Q75: 0 | R75: 1.814722891 | S75: 6.751654217 | T75: =S73 -> 12.22912524 | U75: 18.30821692 | V75: 25.05717235 | W75: 32.55227109 | X75: 40.87881465 | Y75: 50.13223773
C76: Existing Planes | K76: =K35 -> 11 | L76: =L35 -> 10 | M76: 15 | N76: 22 | O76: 25 | P76: 26 | Q76: 25.18527711 | R76: 24.24834578 | S76: 23.17087476 | T76: 21.93178308 | U76: 20.50682765 | V76: 18.86812891 | W76: 16.98362535 | X76: 14.81644627 | Y76: 12.32419031
C77: Total Planes Closing Balance | K77: =K73+K35 -> 11 | L77: 10 | M77: 15 | N77: 22 | O77: 25 | P77: 26 | Q77: 27 | R77: 31 | S77: 35.4 | T77: 40.24 | U77: 45.564 | V77: 51.4204 | W77: 57.86244 | X77: 64.948684 | Y77: 72.7435524
C79: EBITDA for Added Aircraft | K79: =K22*K75 -> 0 | L79: 0 | M79: 0 | N79: 0 | O79: 0 | P79: 0 | Q79: 0 | R79: 2568.090325 | S79: 8200.987457 | T79: 13908.99939 | U79: 18650.30459 | V79: 26291.12466 | W79: 35179.98279 | X79: 45504.02862 | Y79: 57478.55863
C80: Hours of Operation for Added Aircraft | K80: =K75*K25 -> 0 | L80: 0 | M80: 0 | N80: 0 | O80: 0 | P80: 0 | Q80: 0 | R80: 2702.48533 | S80: 10054.56346 | T80: 18211.61331 | U80: 27264.59663 | V80: 37315.14106 | W80: 48476.84211 | X80: 60876.73077 | Y80: 74656.92843
C82: Operating cost per Hour for Incremental Aircraft | K82: =K26 -> 1.114564059 | L82: =L26 -> 0.7311237553 | M82: 1.592115303 | N82: 1.686820786 | O82: 1.619113505 | P82: 1.416614412 | Q82: 1.459112845 | R82: 1.50288623 | S82: 1.547972817 | T82: 1.594412001 | U82: 1.642244361 | V82: 1.691511692 | W82: 1.742257043 | X82: 1.794524754 | Y82: 1.848360497
C83: Operating Cost of Added Aircraft | K83: =K82*K80 -> 0 | L83: =L82*L80 -> 0 | M83: 0 | N83: 0 | O83: 0 | P83: 0 | Q83: 0 | R83: 4061.527989 | S83: 15564.19092 | T83: 29036.81482 | U83: 44775.13009 | V83: 63118.9974 | W83: 84459.11958 | X83: 109244.8003 | Y83: 137992.9173
C85: Revenue per Hour for Incremental Aircraft | K85: =K28 -> 2.129124782 | L85: =L28 -> 1.828889707 | M85: 2.739990963 | N85: 2.840208305 | O85: 2.76856046 | P85: 2.55427592 | Q85: 2.520320157 | R85: 2.595929762 | S85: 2.501183852 | T85: 2.495400041 | U85: 2.461683034 | V85: 2.535533526 | W85: 2.611599531 | X85: 2.689947517 | Y85: 2.770645943
C86: Revenue from Incremental Aircraft | K86: =K85*K80 -> 0 | L86: =L85*L80 -> 0 | M86: 0 | N86: 0 | O86: 0 | P86: 0 | Q86: 0 | R86: 7015.462099 | S86: 25148.31176 | T86: 45445.2606 | U86: 67116.79498 | V86: 94613.79117 | W86: 126602.0981 | X86: 163755.2108 | Y86: 206847.9159
C88: Capital Expenditures Relative to New Aircraft Cost | H88: ='Scenario Analysis'!E30 -> 1 | K88: =$H$88 -> 1 | L88: =$H$88 -> 1 | M88: 1 | N88: 1 | O88: 1 | P88: 1 | Q88: 1 | R88: 1 | S88: 1 | T88: 1 | U88: 1 | V88: 1 | W88: 1 | X88: 1 | Y88: 1
C89: Market Cost of Incremental Planes | K89: =K13*K88 -> 5557.5 | L89: =L13*L88 -> 6175 | M89: 6175 | N89: 6175 | O89: 6175 | P89: 6175 | Q89: 6175 | R89: 6175 | S89: 5145.833333 | T89: 4678.030303 | U89: 4067.852437 | V89: 4067.852437 | W89: 4067.852437 | X89: 4067.852437 | Y89: 4067.852437
C90: Capital Expenditures for New Aircraft | K90: =K88*K71 -> 0 | L90: =L88*L71 -> 0 | M90: 0 | N90: 0 | O90: 0 | P90: 0 | Q90: 1.814722891 | R90: 4.936931325 | S90: 5.477471024 | T90: 6.079091678 | U90: 6.748955429 | V90: 7.495098744 | W90: 8.326543555 | X90: 9.253423088 | Y90: 10.28712435
B92: Air Logistics
C93: Revenues/Growth | H93: ='Scenario Analysis'!H30 -> 0.02 | K93: =IF(K5,'Financial Model'!H51,J93*(1+$H$93)) -> 45893 | L93: =IF(L5,'Financial Model'!I51,K93*(1+$H$93)) -> 52840 | M93: =IF(M5,'Financial Model'!J51,L93*(1+$H$93)) -> 79415 | N93: =IF(N5,'Financial Model'!K51,M93*(1+$H$93)) -> 62593 | O93: =IF(O5,'Financial Model'!L51,N93*(1+$H$93)) -> 89493 | P93: =IF(P5,'Financial Model'!M51,O93*(1+$H$93)) -> 45878 | Q93: =IF(Q5,'Financial Model'!N51,P93/P3*Q3*(1+$H$93)) -> 18198.27333 | R93: =IF(R5,'Financial Model'!O51,Q93/Q3*R3*(1+$H$93)) -> 66293.71 | S93: =IF(S5,'Financial Model'!P51,R93/R3*S3*(1+$H$93)) -> 67619.5842 | T93: =IF(T5,'Financial Model'!Q51,S93/S3*T3*(1+$H$93)) -> 68971.97588 | U93: =IF(U5,'Financial Model'!R51,T93/T3*U3*(1+$H$93)) -> 70351.4154 | V93: =IF(V5,'Financial Model'!S51,U93/U3*V3*(1+$H$93)) -> 71758.44371 | W93: =IF(W5,'Financial Model'!T51,V93/V3*W3*(1+$H$93)) -> 73193.61258 | X93: =IF(X5,'Financial Model'!U51,W93/W3*X3*(1+$H$93)) -> 74657.48484 | Y93: =IF(Y5,'Financial Model'!V51,X93/X3*Y3*(1+$H$93)) -> 76150.63453
C94: Margin | E94: 3 | F94: =AVERAGEIF($5:$5,TRUE,94:94) -> 0.07774171199 | G94: =AVERAGEIF($4:$4,TRUE,94:94) -> 0.08370591569 | H94: ='Scenario Analysis'!I30 -> 0.08 | I94: =CHOOSE(E94,F94,G94,H94) -> 0.08 | K94: 0.05 | L94: 0.07 | M94: =IF(M5,('Financial Model'!J51-'Financial Model'!J54)/M93,$I$94) -> 0.07571617453 | N94: =IF(N5,('Financial Model'!K51-'Financial Model'!K54)/N93,$I$94) -> 0.08251721438 | O94: =IF(O5,('Financial Model'!L51-'Financial Model'!L54)/O93,$I$94) -> 0.1045109673 | P94: =IF(P5,('Financial Model'!M51-'Financial Model'!M54)/P93,$I$94) -> 0.08370591569 | Q94: =IF(Q5,('Financial Model'!N51-'Financial Model'!N54)/Q93,$I$94) -> 0.08 | R94: =IF(R5,('Financial Model'!O51-'Financial Model'!O54)/R93,$I$94) -> 0.08 | S94: =IF(S5,('Financial Model'!P51-'Financial Model'!P54)/S93,$I$94) -> 0.08 | T94: =IF(T5,('Financial Model'!Q51-'Financial Model'!Q54)/T93,$I$94) -> 0.08 | U94: =IF(U5,('Financial Model'!R51-'Financial Model'!R54)/U93,$I$94) -> 0.08 | V94: =IF(V5,('Financial Model'!S51-'Financial Model'!S54)/V93,$I$94) -> 0.08 | W94: =IF(W5,('Financial Model'!T51-'Financial Model'!T54)/W93,$I$94) -> 0.08 | X94: =IF(X5,('Financial Model'!U51-'Financial Model'!U54)/X93,$I$94) -> 0.08 | Y94: =IF(Y5,('Financial Model'!V51-'Financial Model'!V54)/Y93,$I$94) -> 0.08
C95: Operatng Cost | K95: =K93-K94*K93 -> 43598.35 | L95: =L93-L94*L93 -> 49141.2 | M95: 73402 | N95: 57428 | O95: 80140 | P95: 42037.74 | Q95: 16742.41147 | R95: 60990.2132 | S95: 62210.01746 | T95: 63454.21781 | U95: 64723.30217 | V95: 66017.76821 | W95: 67338.12358 | X95: 68684.88605 | Y95: 70058.58377
B97: Admin Expenses and Profit Sharing
C98: Admin Expense | K98: =IF(K5,'Financial Model'!H57) -> 2930 | L98: =IF(L5,'Financial Model'!I57) -> 4394 | M98: =IF(M5,'Financial Model'!J57) -> 6013 | N98: =IF(N5,'Financial Model'!K57) -> 7832 | O98: =IF(O5,'Financial Model'!L57) -> 9080 | P98: =IF(P5,'Financial Model'!M57) -> 7550 | Q98: =IF(Q5,'Financial Model'!N57) -> FALSE | R98: =IF(R5,'Financial Model'!O57) -> FALSE | S98: =IF(S5,'Financial Model'!P57) -> FALSE | T98: =IF(T5,'Financial Model'!Q57) -> FALSE | U98: =IF(U5,'Financial Model'!R57) -> FALSE | V98: =IF(V5,'Financial Model'!S57) -> FALSE | W98: =IF(W5,'Financial Model'!T57) -> FALSE | X98: =IF(X5,'Financial Model'!U57) -> FALSE | Y98: =IF(Y5,'Financial Model'!V57) -> FALSE
C99: Revenues | K99: =IF(K5,'Financial Model'!H52) -> 52653 | L99: =IF(L5,'Financial Model'!I52) -> 65779 | M99: =IF(M5,'Financial Model'!J52) -> 107700 | N99: =IF(N5,'Financial Model'!K52) -> 103710 | O99: =IF(O5,'Financial Model'!L52) -> 142415 | P99: =IF(P5,'Financial Model'!M52) -> 101667 | Q99: =IF(Q5,'Financial Model'!N52) -> FALSE | R99: =IF(R5,'Financial Model'!O52) -> FALSE | S99: =IF(S5,'Financial Model'!P52) -> FALSE | T99: =IF(T5,'Financial Model'!Q52) -> FALSE | U99: =IF(U5,'Financial Model'!R52) -> FALSE | V99: =IF(V5,'Financial Model'!S52) -> FALSE | W99: =IF(W5,'Financial Model'!T52) -> FALSE | X99: =IF(X5,'Financial Model'!U52) -> FALSE | Y99: =IF(Y5,'Financial Model'!V52) -> FALSE
C100: Pct of Revenues | E100: 3 | F100: =AVERAGEIF($5:$5,TRUE,100:100) -> 0.06530257512 | G100: =AVERAGEIF($4:$4,TRUE,100:100) -> 0.0742620516 | H100: ='Scenario Analysis'!J30 -> 0.05 | I100: =CHOOSE(E100,F100,G100,H100) -> 0.05 | K100: =IF(K$5,K98/K99,$I100) -> 0.05564735153 | L100: =IF(L$5,L98/L99,$I100) -> 0.06679943447 | M100: 0.05583101207 | N100: 0.0755182721 | O100: 0.06375732893 | P100: 0.0742620516 | Q100: 0.05 | R100: 0.05 | S100: 0.05 | T100: 0.05 | U100: 0.05 | V100: 0.05 | W100: 0.05 | X100: 0.05 | Y100: 0.05
C102: Profit Sharing | K102: =IF(K5,'Financial Model'!H58) -> 0 | L102: =IF(L5,'Financial Model'!I58) -> 250 | M102: =IF(M5,'Financial Model'!J58) -> 732 | N102: =IF(N5,'Financial Model'!K58) -> 1001 | O102: =IF(O5,'Financial Model'!L58) -> 1170 | P102: =IF(P5,'Financial Model'!M58) -> 1161 | Q102: =IF(Q5,'Financial Model'!N58) -> FALSE | R102: =IF(R5,'Financial Model'!O58) -> FALSE | S102: =IF(S5,'Financial Model'!P58) -> FALSE | T102: =IF(T5,'Financial Model'!Q58) -> FALSE | U102: =IF(U5,'Financial Model'!R58) -> FALSE | V102: =IF(V5,'Financial Model'!S58) -> FALSE | W102: =IF(W5,'Financial Model'!T58) -> FALSE | X102: =IF(X5,'Financial Model'!U58) -> FALSE | Y102: =IF(Y5,'Financial Model'!V58) -> FALSE
C103: Revenues | K103: =K99 -> 52653 | L103: =L99 -> 65779 | M103: 107700 | N103: 103710 | O103: 142415 | P103: 101667 | Q103: FALSE | R103: FALSE | S103: FALSE | T103: FALSE | U103: FALSE | V103: FALSE | W103: FALSE | X103: FALSE | Y103: FALSE
C104: Profit Sharing Percent | E104: 3 | F104: =AVERAGEIF($5:$5,TRUE,104:104) -> 0.006647372977 | G104: =AVERAGEIF($4:$4,TRUE,104:104) -> 0.01141963469 | H104: 0.0082 | I104: =CHOOSE(E104,F104,G104,H104) -> 0.0082 | K104: =IF(K$5,K102/K103,$I104) -> 0 | L104: 0.003800605056 | M104: 0.006796657382 | N104: 0.009651913991 | O104: 0.008215426746 | P104: 0.01141963469 | Q104: 0.0082 | R104: 0.0082 | S104: 0.0082 | T104: 0.0082 | U104: 0.0082 | V104: 0.0082 | W104: 0.0082 | X104: 0.0082 | Y104: 0.0082
C106: Other Income | E106: 3 | F106: =AVERAGEIF($5:$5,TRUE,106:106) -> -335.1666667 | G106: =AVERAGEIF($4:$4,TRUE,106:106) -> 579 | H106: 0 | I106: =CHOOSE(E106,F106,G106,H106) -> 0 | K106: =IF(K$5,'Financial Model'!H64+'Financial Model'!H63-'Financial Model'!H59,$I106) -> 287 | L106: =IF(L$5,'Financial Model'!I64+'Financial Model'!I63-'Financial Model'!I59,$I106) -> 918 | M106: =IF(M$5,'Financial Model'!J64+'Financial Model'!J63-'Financial Model'!J59,$I106) -> 746 | N106: =IF(N$5,'Financial Model'!K64+'Financial Model'!K63-'Financial Model'!K59,$I106) -> -601 | O106: =IF(O$5,'Financial Model'!L64+'Financial Model'!L63-'Financial Model'!L59,$I106) -> -3940 | P106: =IF(P$5,'Financial Model'!M64+'Financial Model'!M63-'Financial Model'!M59,$I106) -> 579 | Q106: =IF(Q$5,'Financial Model'!N64+'Financial Model'!N63-'Financial Model'!N59,$I106) -> 0 | R106: =IF(R$5,'Financial Model'!O64+'Financial Model'!O63-'Financial Model'!O59,$I106) -> 0 | S106: =IF(S$5,'Financial Model'!P64+'Financial Model'!P63-'Financial Model'!P59,$I106) -> 0 | T106: =IF(T$5,'Financial Model'!Q64+'Financial Model'!Q63-'Financial Model'!Q59,$I106) -> 0 | U106: =IF(U$5,'Financial Model'!R64+'Financial Model'!R63-'Financial Model'!R59,$I106) -> 0 | V106: =IF(V$5,'Financial Model'!S64+'Financial Model'!S63-'Financial Model'!S59,$I106) -> 0 | W106: =IF(W$5,'Financial Model'!T64+'Financial Model'!T63-'Financial Model'!T59,$I106) -> 0 | X106: =IF(X$5,'Financial Model'!U64+'Financial Model'!U63-'Financial Model'!U59,$I106) -> 0 | Y106: =IF(Y$5,'Financial Model'!V64+'Financial Model'!V63-'Financial Model'!V59,$I106) -> 0
C107: Deferred Taxes | K107: =IF(K5,'Financial Model'!H41,Assumptions!J107) -> 0 | L107: =IF(L5,'Financial Model'!I41,Assumptions!K107) -> 0 | M107: =IF(M5,'Financial Model'!J41,Assumptions!L107) -> 0 | N107: =IF(N5,'Financial Model'!K41,Assumptions!M107) -> 1316.365 | O107: =IF(O5,'Financial Model'!L41,Assumptions!N107) -> 2421.48 | P107: =IF(P5,'Financial Model'!M41,Assumptions!O107) -> 2544.9 | Q107: =IF(Q5,'Financial Model'!N41,Assumptions!P107) -> 2544.9 | R107: =IF(R5,'Financial Model'!O41,Assumptions!Q107) -> 2544.9 | S107: =IF(S5,'Financial Model'!P41,Assumptions!R107) -> 2544.9 | T107: =IF(T5,'Financial Model'!Q41,Assumptions!S107) -> 2544.9 | U107: =IF(U5,'Financial Model'!R41,Assumptions!T107) -> 2544.9 | V107: =IF(V5,'Financial Model'!S41,Assumptions!U107) -> 2544.9 | W107: =IF(W5,'Financial Model'!T41,Assumptions!V107) -> 2544.9 | X107: =IF(X5,'Financial Model'!U41,Assumptions!W107) -> 2544.9 | Y107: =IF(Y5,'Financial Model'!V41,Assumptions!X107) -> 2544.9
B109: Interest and Taxes
C110: Interest Expense | K110: =IF(K5,-'Financial Model'!H62/K3) -> 157 | L110: =IF(L5,-'Financial Model'!I62/L3) -> 134 | M110: =IF(M5,-'Financial Model'!J62/M3) -> 343 | N110: =IF(N5,-'Financial Model'!K62/N3) -> 1185 | O110: =IF(O5,-'Financial Model'!L62/O3) -> 1859 | P110: =IF(P5,-'Financial Model'!M62/P3) -> 2512.5 | Q110: =IF(Q5,-'Financial Model'!N62/Q3) -> FALSE | R110: =IF(R5,-'Financial Model'!O62/R3) -> FALSE | S110: =IF(S5,-'Financial Model'!P62/S3) -> FALSE | T110: =IF(T5,-'Financial Model'!Q62/T3) -> FALSE | U110: =IF(U5,-'Financial Model'!R62/U3) -> FALSE | V110: =IF(V5,-'Financial Model'!S62/V3) -> FALSE | W110: =IF(W5,-'Financial Model'!T62/W3) -> FALSE | X110: =IF(X5,-'Financial Model'!U62/X3) -> FALSE | Y110: =IF(Y5,-'Financial Model'!V62/Y3) -> FALSE
C111: Debt | K111: =IF(K5,'Financial Model'!H45) -> 2367 | L111: =IF(L5,'Financial Model'!I45) -> 976 | M111: =IF(M5,'Financial Model'!J45) -> 9145 | N111: =IF(N5,'Financial Model'!K45) -> 16981.205 | O111: =IF(O5,'Financial Model'!L45) -> 36911.542 | P111: =IF(P5,'Financial Model'!M45) -> 35146.73 | Q111: =IF(Q5,'Financial Model'!N45) -> FALSE | R111: =IF(R5,'Financial Model'!O45) -> FALSE | S111: =IF(S5,'Financial Model'!P45) -> FALSE | T111: =IF(T5,'Financial Model'!Q45) -> FALSE | U111: =IF(U5,'Financial Model'!R45) -> FALSE | V111: =IF(V5,'Financial Model'!S45) -> FALSE | W111: =IF(W5,'Financial Model'!T45) -> FALSE | X111: =IF(X5,'Financial Model'!U45) -> FALSE | Y111: =IF(Y5,'Financial Model'!V45) -> FALSE
C112: Average Debt | K112: =IF(K5,AVERAGE(J111:K111)) -> 2367 | L112: 1671.5 | M112: 5060.5 | N112: 13063.1025 | O112: 26946.3735 | P112: 36029.136 | Q112: FALSE | R112: FALSE | S112: FALSE | T112: FALSE | U112: FALSE | V112: FALSE | W112: FALSE | X112: FALSE | Y112: FALSE
C113: Average Interest Rate | E113: 3 | F113: =AVERAGEIF($5:$5,TRUE,113:113) -> 0.07395228101 | G113: =AVERAGEIF($4:$4,TRUE,113:113) -> 0.06973522762 | H113: 0.08 | I113: =CHOOSE(E113,F113,G113,H113) -> 0.08 | K113: =IF(K$5,K110/K112,$I113) -> 0.0663286861 | L113: =IF(L$5,L110/L112,$I113) -> 0.08016751421 | M113: 0.06777986365 | N113: 0.09071351924 | O113: 0.06898887526 | P113: 0.06973522762 | Q113: 0.08 | R113: 0.08 | S113: 0.08 | T113: 0.08 | U113: 0.08 | V113: 0.08 | W113: 0.08 | X113: 0.08 | Y113: 0.08
C115: Tax Expense | K115: =IF(K5,'Financial Model'!H66) -> 375 | L115: =IF(L5,'Financial Model'!I66) -> 2613 | M115: =IF(M5,'Financial Model'!J66) -> 3146 | N115: =IF(N5,'Financial Model'!K66) -> 3143 | O115: =IF(O5,'Financial Model'!L66) -> 2768 | P115: =IF(P5,'Financial Model'!M66) -> 4645 | Q115: =IF(Q5,'Financial Model'!N66) -> FALSE | R115: =IF(R5,'Financial Model'!O66) -> FALSE | S115: =IF(S5,'Financial Model'!P66) -> FALSE | T115: =IF(T5,'Financial Model'!Q66) -> FALSE | U115: =IF(U5,'Financial Model'!R66) -> FALSE | V115: =IF(V5,'Financial Model'!S66) -> FALSE | W115: =IF(W5,'Financial Model'!T66) -> FALSE | X115: =IF(X5,'Financial Model'!U66) -> FALSE | Y115: =IF(Y5,'Financial Model'!V66) -> FALSE
C116: Pre-tax Income | K116: =IF(K5,'Financial Model'!H65) -> 1388 | L116: =IF(L5,'Financial Model'!I65) -> 6718 | M116: =IF(M5,'Financial Model'!J65) -> 8406 | N116: =IF(N5,'Financial Model'!K65) -> 7559 | O116: =IF(O5,'Financial Model'!L65) -> 7466 | P116: =IF(P5,'Financial Model'!M65) -> 11612.405 | Q116: =IF(Q5,'Financial Model'!N65) -> FALSE | R116: =IF(R5,'Financial Model'!O65) -> FALSE | S116: =IF(S5,'Financial Model'!P65) -> FALSE | T116: =IF(T5,'Financial Model'!Q65) -> FALSE | U116: =IF(U5,'Financial Model'!R65) -> FALSE | V116: =IF(V5,'Financial Model'!S65) -> FALSE | W116: =IF(W5,'Financial Model'!T65) -> FALSE | X116: =IF(X5,'Financial Model'!U65) -> FALSE | Y116: =IF(Y5,'Financial Model'!V65) -> FALSE
C117: Average Tax Rate | E117: 3 | F117: =AVERAGEIF($5:$5,TRUE,117:117) -> 0.3699884735 | G117: =AVERAGEIF($4:$4,TRUE,117:117) -> 0.4000032724 | H117: 0 | I117: =CHOOSE(E117,F117,G117,H117) -> 0 | K117: =IF(K$5,K115/K116,$I117) -> 0.2701729107 | L117: 0.3889550461 | M117: 0.3742564835 | N117: 0.4157957402 | O117: 0.3707473882 | P117: 0.4000032724 | Q117: 0 | R117: 0 | S117: 0 | T117: 0 | U117: 0 | V117: 0 | W117: 0 | X117: 0 | Y117: 0
A119: Depreciation
B120: Existing Depreciation | K120: ='Financial Model'!H77 -> 891 | L120: ='Financial Model'!I77 -> 920 | M120: ='Financial Model'!J77 -> 771 | N120: ='Financial Model'!K77 -> 2493 | O120: ='Financial Model'!L77 -> 5994 | P120: ='Financial Model'!M77 -> 7035 | Q120: =P120/P3*Q3 -> 2735.833333 | R120: ='Depreciation and Retirement'!D21 -> 9363.693583 | S120: ='Depreciation and Retirement'!E21 -> 9070.277602 | T120: ='Depreciation and Retirement'!F21 -> 8732.849224 | U120: ='Depreciation and Retirement'!G21 -> 8344.806589 | V120: ='Depreciation and Retirement'!H21 -> 7898.557558 | W120: ='Depreciation and Retirement'!I21 -> 7385.371173 | X120: ='Depreciation and Retirement'!J21 -> 6795.206831 | Y120: ='Depreciation and Retirement'!K21 -> 6116.517837
B121: Existing Retirements | Q121: ='Depreciation and Retirement'!D18 -> 3520.991774 | R121: ='Depreciation and Retirement'!E18 -> 4049.14054 | S121: ='Depreciation and Retirement'!F18 -> 4656.511621 | T121: ='Depreciation and Retirement'!G18 -> 5354.988365 | U121: ='Depreciation and Retirement'!H18 -> 6158.236619 | V121: ='Depreciation and Retirement'!I18 -> 7081.972112 | W121: ='Depreciation and Retirement'!J18 -> 8144.267929 | X121: ='Depreciation and Retirement'!K18 -> 9365.908118 | Y121: ='Depreciation and Retirement'!L18 -> 10770.79434
B123: Depreciation Rate
C124: Net Plant | K124: ='Financial Model'!H27 -> 9874 | L124: ='Financial Model'!I27 -> 18598 | M124: ='Financial Model'!J27 -> 37911 | N124: ='Financial Model'!K27 -> 30237.801 | O124: ='Financial Model'!L27 -> 56313.286 | P124: ='Financial Model'!M27 -> 89356.941 | Q124: ='Financial Model'!N27 -> 0 | R124: ='Financial Model'!O27 -> 0 | S124: ='Financial Model'!P27 -> 0 | T124: ='Financial Model'!Q27 -> 0 | U124: ='Financial Model'!R27 -> 0 | V124: ='Financial Model'!S27 -> 0 | W124: ='Financial Model'!T27 -> 0 | X124: ='Financial Model'!U27 -> 0 | Y124: ='Financial Model'!V27 -> 0
C125: Net Plant Rate | K125: =IF(K124,K120/K124/K3) -> 0.09023698602 | L125: 0.0494676847 | M125: 0.02033710533 | N125: 0.08244647155 | O125: 0.1064402457 | P125: 0.1093461037 | Q125: FALSE | R125: FALSE | S125: FALSE | T125: FALSE | U125: FALSE | V125: FALSE | W125: FALSE | X125: FALSE | Y125: FALSE
C127: Gross Plant | K127: ='Financial Model'!H25 -> 9874 | L127: ='Financial Model'!I25 -> 18598 | M127: ='Financial Model'!J25 -> 37911 | N127: ='Financial Model'!K25 -> 38032.133 | O127: ='Financial Model'!L25 -> 69426.072 | P127: ='Financial Model'!M25 -> 112364.323 | Q127: ='Financial Model'!N25 -> 0 | R127: ='Financial Model'!O25 -> 0 | S127: ='Financial Model'!P25 -> 0 | T127: ='Financial Model'!Q25 -> 0 | U127: ='Financial Model'!R25 -> 0 | V127: ='Financial Model'!S25 -> 0 | W127: ='Financial Model'!T25 -> 0 | X127: ='Financial Model'!U25 -> 0 | Y127: ='Financial Model'!V25 -> 0
C128: Gross Plant Rate | K128: =IF(K127,K120/K127/K3) -> 0.09023698602 | L128: 0.0494676847 | M128: 0.02033710533 | N128: 0.06554983387 | O128: 0.08633644145 | P128: 0.08695672321 | Q128: FALSE | R128: FALSE | S128: FALSE | T128: FALSE | U128: FALSE | V128: FALSE | W128: FALSE | X128: FALSE | Y128: FALSE
C129: Average Life | E129: 3 | F129: =AVERAGEIF($5:$5,TRUE,129:129) -> 19.8010818 | G129: =AVERAGEIF($4:$4,TRUE,129:129) -> 11.49997336 | H129: 11.5 | I129: =CHOOSE(E129,F129,G129,H129) -> 11.5 | K129: =IF(K128,1/K128,$I129) -> 11.08193042 | L129: =IF(L128,1/L128,$I129) -> 20.21521739 | M129: 49.17120623 | N129: 15.25556879 | O129: 11.58259459 | P129: 11.49997336 | Q129: 11.5 | R129: 11.5 | S129: 11.5 | T129: 11.5 | U129: 11.5 | V129: 11.5 | W129: 11.5 | X129: 11.5 | Y129: 11.5
A131: Working Capital
B132: Accounts Receivable | K132: =IF(K5,'Financial Model'!H9) -> 0 | L132: =IF(L5,'Financial Model'!I9) -> 0 | M132: =IF(M5,'Financial Model'!J9) -> 0 | N132: =IF(N5,'Financial Model'!K9) -> 12967.734 | O132: =IF(O5,'Financial Model'!L9) -> 14195.99 | P132: =IF(P5,'Financial Model'!M9) -> 21644.727 | Q132: =IF(Q5,'Financial Model'!N9) -> FALSE | R132: =IF(R5,'Financial Model'!O9) -> FALSE | S132: =IF(S5,'Financial Model'!P9) -> FALSE | T132: =IF(T5,'Financial Model'!Q9) -> FALSE | U132: =IF(U5,'Financial Model'!R9) -> FALSE | V132: =IF(V5,'Financial Model'!S9) -> FALSE | W132: =IF(W5,'Financial Model'!T9) -> FALSE | X132: =IF(X5,'Financial Model'!U9) -> FALSE | Y132: =IF(Y5,'Financial Model'!V9) -> FALSE
B133: Revenues | K133: =K99/K3 -> 52653 | L133: 65779 | M133: 107700 | N133: 103710 | O133: 142415 | P133: 141204.1667 | Q133: 0 | R133: 0 | S133: 0 | T133: 0 | U133: 0 | V133: 0 | W133: 0 | X133: 0 | Y133: 0
B134: Percentage | E134: 3 | F134: =AVERAGEIF($5:$5,TRUE,134:134) -> 0.1380009334 | G134: =AVERAGEIF($4:$4,TRUE,134:134) -> 0.1532867444 | H134: 0.15 | I134: =CHOOSE(E134,F134,G134,H134) -> 0.15 | K134: =IF(K132,K132/K133,$I134) -> 0.15 | L134: =IF(L132,L132/L133,$I134) -> 0.15 | M134: 0.15 | N134: 0.1250384148 | O134: 0.09968044096 | P134: 0.1532867444 | Q134: 0.15 | R134: 0.15 | S134: 0.15 | T134: 0.15 | U134: 0.15 | V134: 0.15 | W134: 0.15 | X134: 0.15 | Y134: 0.15
B136: Other Current Assets | K136: =IF(K5,SUM('Financial Model'!H10:H15)) -> 0 | L136: =IF(L5,SUM('Financial Model'!I10:I15)) -> 0 | M136: =IF(M5,SUM('Financial Model'!J10:J15)) -> 0 | N136: =IF(N5,SUM('Financial Model'!K10:K15)) -> 946.621 | O136: =IF(O5,SUM('Financial Model'!L10:L15)) -> 3554.698 | P136: =IF(P5,SUM('Financial Model'!M10:M15)) -> 12395.5 | Q136: =IF(Q5,SUM('Financial Model'!N10:N15)) -> FALSE | R136: =IF(R5,SUM('Financial Model'!O10:O15)) -> FALSE | S136: =IF(S5,SUM('Financial Model'!P10:P15)) -> FALSE | T136: =IF(T5,SUM('Financial Model'!Q10:Q15)) -> FALSE | U136: =IF(U5,SUM('Financial Model'!R10:R15)) -> FALSE | V136: =IF(V5,SUM('Financial Model'!S10:S15)) -> FALSE | W136: =IF(W5,SUM('Financial Model'!T10:T15)) -> FALSE | X136: =IF(X5,SUM('Financial Model'!U10:U15)) -> FALSE | Y136: =IF(Y5,SUM('Financial Model'!V10:V15)) -> FALSE
B137: Revenues | K137: =K103/K3 -> 52653 | L137: 65779 | M137: 107700 | N137: 103710 | O137: 142415 | P137: 141204.1667 | Q137: 0 | R137: 0 | S137: 0 | T137: 0 | U137: 0 | V137: 0 | W137: 0 | X137: 0 | Y137: 0
B138: Percentage | E138: 3 | F138: =AVERAGEIF($5:$5,TRUE,138:138) -> 0.07531199188 | G138: =AVERAGEIF($4:$4,TRUE,138:138) -> 0.08778423677 | H138: 0.11 | I138: =CHOOSE(E138,F138,G138,H138) -> 0.11 | K138: =IF(K136,K136/K137,$I138) -> 0.11 | L138: 0.11 | M138: 0.11 | N138: 0.009127576897 | O138: 0.02496013763 | P138: 0.08778423677 | Q138: 0.11 | R138: 0.11 | S138: 0.11 | T138: 0.11 | U138: 0.11 | V138: 0.11 | W138: 0.11 | X138: 0.11 | Y138: 0.11
B140: Accounts Payable | K140: =IF(K5,'Financial Model'!H32) -> 4323 | L140: =IF(L5,'Financial Model'!I32) -> 10333 | M140: =IF(M5,'Financial Model'!J32) -> 16216 | N140: =IF(N5,'Financial Model'!K32) -> 9327.109 | O140: =IF(O5,'Financial Model'!L32) -> 12952.18 | P140: =IF(P5,'Financial Model'!M32) -> 8522.412 | Q140: =IF(Q5,'Financial Model'!N32) -> FALSE | R140: =IF(R5,'Financial Model'!O32) -> FALSE | S140: =IF(S5,'Financial Model'!P32) -> FALSE | T140: =IF(T5,'Financial Model'!Q32) -> FALSE | U140: =IF(U5,'Financial Model'!R32) -> FALSE | V140: =IF(V5,'Financial Model'!S32) -> FALSE | W140: =IF(W5,'Financial Model'!T32) -> FALSE | X140: =IF(X5,'Financial Model'!U32) -> FALSE | Y140: =IF(Y5,'Financial Model'!V32) -> FALSE
B141: Cash Expenses | K141: =(K54+K95)/K3 -> 47574 | L141: 54281 | M141: 92181 | N141: 83039 | O141: 112906 | P141: 101498.0486 | Q141: 59794.32667 | R141: 60990.2132 | S141: 62210.01746 | T141: 63454.21781 | U141: 64723.30217 | V141: 66017.76821 | W141: 67338.12358 | X141: 68684.88605 | Y141: 70058.58377
B142: Percentage | E142: 3 | F142: =AVERAGEIF($5:$5,TRUE,142:142) -> 0.1280249651 | G142: =AVERAGEIF($4:$4,TRUE,142:142) -> 0.08396626454 | H142: 0.08 | I142: =CHOOSE(E142,F142,G142,H142) -> 0.08 | K142: =IF(K140,K140/K141,$I142) -> 0.09086896204 | L142: 0.1903612682 | M142: 0.1759147764 | N142: 0.1123220294 | O142: 0.1147164898 | P142: 0.08396626454 | Q142: 0.08 | R142: 0.08 | S142: 0.08 | T142: 0.08 | U142: 0.08 | V142: 0.08 | W142: 0.08 | X142: 0.08 | Y142: 0.08
B144: Other Current Liabilities | K144: =IF(K5,SUM('Financial Model'!H33:H35)) -> 0 | L144: =IF(L5,SUM('Financial Model'!I33:I35)) -> 0 | M144: =IF(M5,SUM('Financial Model'!J33:J35)) -> 0 | N144: =IF(N5,SUM('Financial Model'!K33:K35)) -> 3362.951 | O144: =IF(O5,SUM('Financial Model'!L33:L35)) -> 3903.931 | P144: =IF(P5,SUM('Financial Model'!M33:M35)) -> 19445.526 | Q144: =IF(Q5,SUM('Financial Model'!N33:N35)) -> FALSE | R144: =IF(R5,SUM('Financial Model'!O33:O35)) -> FALSE | S144: =IF(S5,SUM('Financial Model'!P33:P35)) -> FALSE | T144: =IF(T5,SUM('Financial Model'!Q33:Q35)) -> FALSE | U144: =IF(U5,SUM('Financial Model'!R33:R35)) -> FALSE | V144: =IF(V5,SUM('Financial Model'!S33:S35)) -> FALSE | W144: =IF(W5,SUM('Financial Model'!T33:T35)) -> FALSE | X144: =IF(X5,SUM('Financial Model'!U33:U35)) -> FALSE | Y144: =IF(Y5,SUM('Financial Model'!V33:V35)) -> FALSE
B145: Revenues | K145: =K137 -> 52653 | L145: =L137 -> 65779 | M145: 107700 | N145: 103710 | O145: 142415 | P145: 141204.1667 | Q145: 0 | R145: 0 | S145: 0 | T145: 0 | U145: 0 | V145: 0 | W145: 0 | X145: 0 | Y145: 0
B146: Percentage | E146: 3 | F146: =AVERAGEIF($5:$5,TRUE,146:146) -> 0.09792516194 | G146: =AVERAGEIF($4:$4,TRUE,146:146) -> 0.1377121261 | H146: 0.13 | I146: =CHOOSE(E146,F146,G146,H146) -> 0.13 | K146: =IF(K144,K144/K145,$I146) -> 0.13 | L146: 0.13 | M146: 0.13 | N146: 0.03242648732 | O146: 0.02741235825 | P146: 0.1377121261 | Q146: 0.13 | R146: 0.13 | S146: 0.13 | T146: 0.13 | U146: 0.13 | V146: 0.13 | W146: 0.13 | X146: 0.13 | Y146: 0.13
A148: Financing
B149: Cash Balance | K149: =IF(K5,'Financial Model'!H8) -> 0 | L149: =IF(L5,'Financial Model'!I8) -> 0 | M149: =IF(M5,'Financial Model'!J8) -> 0 | N149: =IF(N5,'Financial Model'!K8) -> 3801.378 | O149: =IF(O5,'Financial Model'!L8) -> 5763.904 | P149: =IF(P5,'Financial Model'!M8) -> 7503.48 | Q149: =IF(Q5,'Financial Model'!N8) -> FALSE | R149: =IF(R5,'Financial Model'!O8) -> FALSE | S149: =IF(S5,'Financial Model'!P8) -> FALSE | T149: =IF(T5,'Financial Model'!Q8) -> FALSE | U149: =IF(U5,'Financial Model'!R8) -> FALSE | V149: =IF(V5,'Financial Model'!S8) -> FALSE | W149: =IF(W5,'Financial Model'!T8) -> FALSE | X149: =IF(X5,'Financial Model'!U8) -> FALSE | Y149: =IF(Y5,'Financial Model'!V8) -> FALSE
B150: Revenues | K150: =K145 -> 52653 | L150: =L145 -> 65779 | M150: 107700 | N150: 103710 | O150: 142415 | P150: 141204.1667 | Q150: 0 | R150: 0 | S150: 0 | T150: 0 | U150: 0 | V150: 0 | W150: 0 | X150: 0 | Y150: 0
B151: Cash Revenue percent | E151: 3 | F151: =AVERAGEIF($5:$5,TRUE,151:151) -> 0.03171095589 | G151: =AVERAGEIF($4:$4,TRUE,151:151) -> 0.05313922512 | H151: 0.02 | I151: =CHOOSE(E151,F151,G151,H151) -> 0.02 | K151: =I151 -> 0.02 | L151: =I151 -> 0.02 | M151: =I151 -> 0.02 | N151: =IF(N5,N149/N150,$I151) -> 0.03665391958 | O151: 0.04047259067 | P151: 0.05313922512 | Q151: 0.02 | R151: 0.02 | S151: 0.02 | T151: 0.02 | U151: 0.02 | V151: 0.02 | W151: 0.02 | X151: 0.02 | Y151: 0.02
B153: Interest Income Rate | E153: 3 | F153: =AVERAGEIF($5:$5,TRUE,153:153) -> 0.02 | G153: =AVERAGEIF($4:$4,TRUE,153:153) -> 0.02 | H153: ='Scenario Analysis'!L30 -> 0.02 | I153: =CHOOSE(E153,F153,G153,H153) -> 0.02 | K153: =I153 -> 0.02 | L153: =I153 -> 0.02 | M153: =I153 -> 0.02 | N153: =IF(N7,N151/N152,$I153) -> 0.02 | O153: 0.02 | P153: 0.02 | Q153: 0.02 | R153: 0.02 | S153: 0.02 | T153: 0.02 | U153: 0.02 | V153: 0.02 | W153: 0.02 | X153: 0.02 | Y153: 0.02

Sheet Financial Model
M1: nine mos
H2: 1992 | I2: 1993 | J2: 1994 | K2: 1995 | L2: 1996 | M2: 1997 | N2: =M2 -> 1997 | O2: =N2+1 -> 1998 | P2: =O2+1 -> 1999 | Q2: 2000 | R2: 2001 | S2: 2002 | T2: 2003 | U2: 2004 | V2: 2005
H3: 1 | I3: 1 | J3: 1 | K3: 1 | L3: 1 | M3: 0.72 | N3: =1-M3 -> 0.28 | O3: 1 | P3: 1 | Q3: 1 | R3: 1 | S3: 1 | T3: 1 | U3: 1 | V3: 1
H4: TRUE | I4: TRUE | J4: TRUE | K4: TRUE | L4: TRUE | M4: TRUE | N4: FALSE | O4: FALSE | P4: FALSE | Q4: FALSE | R4: FALSE | S4: FALSE | T4: FALSE | U4: FALSE | V4: FALSE
A5: Balance Sheet
B6: ASSETS
C7: Current assets:
D8: Cash and cash equivalents | E8: -1 | K8: 3801.378 | L8: 5763.904 | M8: 7503.48
D9: Trade accounts receivable, net of allowance for doubtful accounts of $05 million and $01 million, respectively | E9: 0 | F9: 1 | K9: 12967.734 | L9: 14195.99 | M9: 21644.727
D10: Income tax receivable | E10: 0 | F10: 1 | K10: 0 | L10: 765.395 | M10: 0
D11: Deferred income taxes | E11: 0 | F11: 1 | K11: 50.41 | L11: 156.562 | M11: 107.564
D12: Inventory and aircraft supplies | E12: 0 | F12: 1 | K12: 98.386 | L12: 1713.812 | M12: 5587.548
D13: Deposits and prepaid expenses | E13: 0 | F13: 1 | K13: 0 | L13: 0 | M13: 3875.316
D14: Prepaid aircraft fuel | E14: 0 | F14: 1 | K14: 797.825 | L14: 918.929 | M14: 2825.072
D15: Other current assets, net | E15: 0 | F15: 1 | K15: 0 | L15: 0
D16: Total current assets | E16: 0 | K16: 17715.733 | L16: 23514.592 | M16: 41543.707
C18: Aircraft | E18: 0 | K18: 36179.455 | L18: 53695.32 | M18: 93649.024
C19: Aircraft work-in-progress | E19: 0 | K19: 0 | L19: 13476.355 | M19: 8178.161
C20: Machinery and equipment | E20: 0 | K20: 1425.272 | L20: 1776.319 | M20: 5122.368
C21: Leasehold improvements | E21: 0 | K21: 0 | L21: 75.313 | M21: 3053.624
C22: Building | E22: 0 | K22: 251.349 | L22: 166.057 | M22: 1770
C23: Furniture and fixtures | E23: 0 | K23: 176.057 | L23: 236.708 | M23: 173.899
C24: Transportation equipment | E24: 0 | M24: 417.247
D25: Total plant assets | E25: 0 | H25: 9874 | I25: 18598 | J25: 37911 | K25: 38032.133 | L25: 69426.072 | M25: 112364.323
D26: Accumulated Depreciation | E26: 0 | K26: -7794.332 | L26: -13112.786 | M26: -23007.382
C27: Property and equipment, net | E27: 0 | F27: 1 | H27: 9874 | I27: 18598 | J27: 37911 | K27: 30237.801 | L27: 56313.286 | M27: 89356.941
D28: Total assets | H28: 9874 | I28: 18598 | J28: 37911 | K28: 47953.534 | L28: 79827.878 | M28: 130900.648
B30: LIABILITIES AND STOCKHOLDERS’ EQUITY
C31: Current liabilities:
C32: Accounts payable 0 trade | F32: -1 | H32: 4323 | I32: 10333 | J32: 16216 | K32: 9327.109 | L32: 12952.18 | M32: 8522.412
C33: Accrued wages and compensation related expenses | F33: -1 | K33: 1336.696 | L33: 1580.465 | M33: 13226.661
D34: Current portion of accrued aircraft maintenance reserves | E34: 1 | K34: 2026.255 | L34: 2323.466 | M34: 3326.009
C35: Taxes payable | F35: -1 | K35: 0 | L35: 0 | M35: 2892.856
D36: Revolving Credit Facility | E36: 1 | G36: 1 | K36: 0 | L36: 10000 | M36: 0
C37: Current debt | E37: 1 | G37: 1 | K37: 3278.553 | L37: 3620.24 | M37: 8373.261
C38: Total current liabilities | H38: 4323 | I38: 10333 | J38: 16216 | K38: 15968.613 | L38: 30476.351 | M38: 36341.199
D40: Long-term debt | E40: 1 | F40: 0 | G40: 1 | H40: 2367 | I40: 976 | J40: 9145 | K40: 13702.652 | L40: 23291.302 | M40: 26773.469
D41: Deferred income taxes | E41: 0 | F41: -1 | K41: 1316.365 | L41: 2421.48 | M41: 2544.9
D42: Total stockholders’ equity | E42: 1 | H42: 3184 | I42: 7289 | J42: 12550 | K42: 16965.904 | L42: 23638.745 | M42: 65241.08
D43: Total liabilities and stockholders’ equity | E43: 0 | H43: 9874 | I43: 18598 | J43: 37911 | K43: 47953.534 | L43: 79827.878 | M43: 130900.648
D45: Total Debt | H45: 2367 | I45: 976 | J45: 9145 | K45: 16981.205 | L45: 36911.542 | M45: 35146.73
A48: Results of Operations
B49: Revenue:
C50: Scheduled freight | H50: 6760 | I50: 12939 | J50: 28285 | K50: 41117 | L50: 52922 | M50: 55789
C51: Air logistics revenues | H51: 45893 | I51: 52840 | J51: 79415 | K51: 62593 | L51: 89493 | M51: 45878
C52: Total revenue | H52: 52653 | I52: 65779 | J52: 107700 | K52: 103710 | L52: 142415 | M52: 101667
C53: Air freight carrier Cost | H53: 4866.65 | I53: 6059.8 | J53: 19550 | K53: 28104 | L53: 38760 | M53: 38075.855
C54: Air logistics Cost | H54: 43598.35 | I54: 49141.2 | J54: 73402 | K54: 57428 | L54: 80140 | M54: 42037.74
C55: Total cost of revenue | H55: 48465 | I55: 55201 | J55: 92952 | K55: 85532 | L55: 118900 | M55: 80113.595
B56: Gross profit (loss) | H56: 4188 | I56: 10578 | J56: 14748 | K56: 18178 | L56: 23515 | M56: 21553.405
B57: General and administrative expenses | H57: 2930 | I57: 4394 | J57: 6013 | K57: 7832 | L57: 9080 | M57: 7550
B58: Non-qualified profit sharing | H58: 0 | I58: 250 | J58: 732 | K58: 1001 | L58: 1170 | M58: 1161
B59: Stock option grants to | H59: 0 | I59: 0 | J59: 0 | K59: 0 | L59: 4231 | M59: 0
B60: Operating profit (loss) from continuing operations | H60: 1258 | I60: 5934 | J60: 8003 | K60: 9345 | L60: 9034 | M60: 12842.405
B61: Other (income) expense:
C62: Interest expense | H62: -157 | I62: -134 | J62: -343 | K62: -1185 | L62: -1859 | M62: -1809
C63: Other income(3) | H63: 287 | I63: 193 | J63: -432 | K63: -601 | L63: 291 | M63: 579
C64: Contract settlement income | H64: 0 | I64: 725 | J64: 1178 | K64: 0 | L64: 0 | M64: 0
B65: Income (loss) from continuing operations before income taxes | H65: 1388 | I65: 6718 | J65: 8406 | K65: 7559 | L65: 7466 | M65: 11612.405
C66: Income tax expense | H66: 375 | I66: 2613 | J66: 3146 | K66: 3143 | L66: 2768 | M66: 4645
B67: Net income (loss) allocable to common stockholders(6) | H67: 1013 | I67: 4105 | J67: 5260 | K67: 4416 | L67: 4698 | M67: 6967.405
A69: Earnings (Loss) Per Share Data
B70: Continuing operations(6)(7) | H70: 0.12 | I70: 0.52 | J70: 0.66 | K70: 0.55 | L70: 0.52 | M70: 0.67
B71: Weighted average common stock outstanding(7) | H71: 8671 | I71: 7968 | J71: 7968 | K71: 7968 | L71: 7928 | M71: 7928
A72: OTHER FINANCIAL DATA:
B73: Capital expenditures | H73: 3019 | I73: 1318 | J73: 13876 | K73: 17929 | L73: 33538 | M73: 48575
B74: Adjusted EBITDA(3) | H74: 2149 | I74: 7104 | J74: 9507 | K74: 12839 | L74: 19840 | M74: 21039
B75: Depreciation Expense | H75: 0 | I75: 0 | J75: 1935.348 | K75: 4095.156 | L75: 6873.033 | M75: 7617.367
B76: Gross Profit - G&A | H76: 1258 | I76: 6184 | J76: 8736 | K76: 10346 | L76: 13846 | M76: 14004
B77: Implied Depreciation | H77: 891 | I77: 920 | J77: 771 | K77: 2493 | L77: 5994 | M77: 7035
A79: Operating Data
B80: Aircraft owned (at end of | H80: 11 | I80: 10 | J80: 15 | K80: 22 | L80: 25 | M80: 26
B81: Revenue block hours flown(11) | H81: 3567 | I81: 7030 | J81: 11795 | K81: 15183 | L81: 20237 | M81: 21912
A83: Assumptions
B84: Number of Planes
C85: Existing Planes | H85: =Assumptions!K40 -> 11 | I85: =Assumptions!L40 -> 10.5 | J85: =Assumptions!M40 -> 12.5 | K85: =Assumptions!N40 -> 18.5 | L85: =Assumptions!O40 -> 23.5 | M85: =Assumptions!P40 -> 25.5 | N85: =Assumptions!Q40 -> 25.59263855 | O85: =Assumptions!R40 -> 24.71681145 | P85: =Assumptions!S40 -> 23.70961027 | Q85: =Assumptions!T40 -> 22.55132892 | R85: =Assumptions!U40 -> 21.21930537 | S85: =Assumptions!V40 -> 19.68747828 | T85: =Assumptions!W40 -> 17.92587713 | U85: =Assumptions!X40 -> 15.90003581 | V85: =Assumptions!Y40 -> 13.57031829
C86: New Planes | H86: =Assumptions!K73 -> 0 | I86: =Assumptions!L73 -> 0 | J86: =Assumptions!M73 -> 0 | K86: =Assumptions!N73 -> 0 | L86: =Assumptions!O73 -> 0 | M86: =Assumptions!P73 -> 0 | N86: =Assumptions!Q73 -> 1.814722891 | O86: =Assumptions!R73 -> 6.751654217 | P86: =Assumptions!S73 -> 12.22912524 | Q86: =Assumptions!T73 -> 18.30821692 | R86: =Assumptions!U73 -> 25.05717235 | S86: =Assumptions!V73 -> 32.55227109 | T86: =Assumptions!W73 -> 40.87881465 | U86: =Assumptions!X73 -> 50.13223773 | V86: =Assumptions!Y73 -> 60.41936209
D87: Total Planes | H87: =SUM(H85:H86) -> 11 | I87: 10.5 | J87: 12.5 | K87: 18.5 | L87: 23.5 | M87: 25.5 | N87: 27.40736145 | O87: 31.46846566 | P87: 35.93873551 | Q87: 40.85954584 | R87: 46.27647771 | S87: 52.23974937 | T87: 58.80469178 | U87: 66.03227354 | V87: 73.98968038
C89: Added Planes | H89: =Assumptions!K71 -> 0 | I89: =Assumptions!L71 -> 0 | J89: =Assumptions!M71 -> 0 | K89: =Assumptions!N71 -> 0 | L89: =Assumptions!O71 -> 0 | M89: =Assumptions!P71 -> 0 | N89: =Assumptions!Q71 -> 1.814722891 | O89: =Assumptions!R71 -> 4.936931325 | P89: =Assumptions!S71 -> 5.477471024 | Q89: =Assumptions!T71 -> 6.079091678 | R89: =Assumptions!U71 -> 6.748955429 | S89: =Assumptions!V71 -> 7.495098744 | T89: =Assumptions!W71 -> 8.326543555 | U89: =Assumptions!X71 -> 9.253423088 | V89: =Assumptions!Y71 -> 10.28712435
C90: Operational Planes - Existing | H90: =H87 -> 11 | I90: =I87 -> 10.5 | J90: 12.5 | K90: 18.5 | L90: 23.5 | M90: 25.5 | N90: 27.40736145 | O90: 31.46846566 | P90: 35.93873551 | Q90: 40.85954584 | R90: 46.27647771 | S90: 52.23974937 | T90: 58.80469178 | U90: 66.03227354 | V90: 73.98968038
C91: Operational Planes - New | H91: =G86 -> 0 | I91: =H86 -> 0 | J91: 0 | K91: 0 | L91: 0 | M91: 0 | N91: 0 | O91: 1.814722891 | P91: 6.751654217 | Q91: 12.22912524 | R91: 18.30821692 | S91: 25.05717235 | T91: 32.55227109 | U91: 40.87881465 | V91: 50.13223773
B93: Capital Expenditures
C94: Capital Expenditure per Plane | H94: =Assumptions!K89 -> 5557.5 | I94: =Assumptions!L89 -> 6175 | J94: =Assumptions!M89 -> 6175 | K94: =Assumptions!N89 -> 6175 | L94: =Assumptions!O89 -> 6175 | M94: =Assumptions!P89 -> 6175 | N94: =Assumptions!Q89 -> 6175 | O94: =Assumptions!R89 -> 6175 | P94: =Assumptions!S89 -> 5145.833333 | Q94: =Assumptions!T89 -> 4678.030303 | R94: =Assumptions!U89 -> 4067.852437 | S94: =Assumptions!V89 -> 4067.852437 | T94: =Assumptions!W89 -> 4067.852437 | U94: =Assumptions!X89 -> 4067.852437 | V94: =Assumptions!Y89 -> 4067.852437
C95: Capital Expenditures | H95: =H94*H89 -> 0 | I95: =I94*I89 -> 0 | J95: 0 | K95: 0 | L95: 0 | M95: 0 | N95: 11205.91385 | O95: 30485.55093 | P95: 28186.15298 | Q95: 28438.17508 | R95: 27453.75479 | S95: 30488.95569 | T95: 33871.1505 | U95: 37641.55966 | V95: 41846.50387
B97: Revenues
C98: Flight Hours/Aircraft - Existing | H98: =Assumptions!K39 -> 324.2727273 | I98: =Assumptions!L39 -> 669.5238095 | J98: =Assumptions!M39 -> 943.6 | K98: =Assumptions!N39 -> 820.7027027 | L98: =Assumptions!O39 -> 861.1489362 | M98: =Assumptions!P39 -> 1193.464052 | N98: =Assumptions!Q39 -> 1100 | O98: =Assumptions!R39 -> 1100 | P98: =Assumptions!S39 -> 1100 | Q98: =Assumptions!T39 -> 1100 | R98: =Assumptions!U39 -> 1100 | S98: =Assumptions!V39 -> 1100 | T98: =Assumptions!W39 -> 1100 | U98: =Assumptions!X39 -> 1100 | V98: =Assumptions!Y39 -> 1100
C99: Flight Hours/Aircraft - Incremental | H99: =Assumptions!K25 -> 1489.2 | I99: =Assumptions!L25 -> 1489.2 | J99: =Assumptions!M25 -> 1489.2 | K99: =Assumptions!N25 -> 1489.2 | L99: =Assumptions!O25 -> 1489.2 | M99: =Assumptions!P25 -> 1489.2 | N99: =Assumptions!Q25 -> 1489.2 | O99: =Assumptions!R25 -> 1489.2 | P99: =Assumptions!S25 -> 1489.2 | Q99: =Assumptions!T25 -> 1489.2 | R99: =Assumptions!U25 -> 1489.2 | S99: =Assumptions!V25 -> 1489.2 | T99: =Assumptions!W25 -> 1489.2 | U99: =Assumptions!X25 -> 1489.2 | V99: =Assumptions!Y25 -> 1489.2
C101: Price/Flight Hour - Existing | H101: =Assumptions!K47 -> 1.895149986 | I101: =Assumptions!L47 -> 1.840540541 | J101: =Assumptions!M47 -> 2.398050021 | K101: =Assumptions!N47 -> 2.708094579 | L101: =Assumptions!O47 -> 2.615110935 | M101: =Assumptions!P47 -> 2.546047828 | N101: =Assumptions!Q47 -> 2.512201447 | O101: =Assumptions!R47 -> 2.58756749 | P101: =Assumptions!S47 -> 2.493126785 | Q101: =Assumptions!T47 -> 2.487361606 | R101: =Assumptions!U47 -> 2.453753212 | S101: =Assumptions!V47 -> 2.527365808 | T101: =Assumptions!W47 -> 2.603186782 | U101: =Assumptions!X47 -> 2.681282386 | V101: =Assumptions!Y47 -> 2.761720858
C102: Price/Flight Hour - Incremental | H102: =Assumptions!K85 -> 2.129124782 | I102: =Assumptions!L85 -> 1.828889707 | J102: =Assumptions!M85 -> 2.739990963 | K102: =Assumptions!N85 -> 2.840208305 | L102: =Assumptions!O85 -> 2.76856046 | M102: =Assumptions!P85 -> 2.55427592 | N102: =Assumptions!Q85 -> 2.520320157 | O102: =Assumptions!R85 -> 2.595929762 | P102: =Assumptions!S85 -> 2.501183852 | Q102: =Assumptions!T85 -> 2.495400041 | R102: =Assumptions!U85 -> 2.461683034 | S102: =Assumptions!V85 -> 2.535533526 | T102: =Assumptions!W85 -> 2.611599531 | U102: =Assumptions!X85 -> 2.689947517 | V102: =Assumptions!Y85 -> 2.770645943
C104: Total Revenues - Existing | H104: =H98*H101*H85*H3 -> 6760 | I104: =I98*I101*I85*I3 -> 12939 | J104: 28285 | K104: 41117 | L104: 52922 | M104: 55789 | N104: 19802.50999 | O104: 70352.05954 | P104: 65022.17087 | Q104: 61702.64069 | R104: 57273.63257 | S104: 54733.2054 | T104: 51330.84706 | U104: 46895.73455 | V104: 41225.17417
C105: Total Revenues - Incremental | H105: =H99*H102*H91 -> 0 | I105: =I99*I102*I91 -> 0 | J105: 0 | K105: 0 | L105: 0 | M105: 0 | N105: 0 | O105: 7015.462099 | P105: 25148.31176 | Q105: 45445.2606 | R105: 67116.79498 | S105: 94613.79117 | T105: 126602.0981 | U105: 163755.2108 | V105: 206847.9159
C106: Logistics Revenues | H106: =Assumptions!K93 -> 45893 | I106: =Assumptions!L93 -> 52840 | J106: =Assumptions!M93 -> 79415 | K106: =Assumptions!N93 -> 62593 | L106: =Assumptions!O93 -> 89493 | M106: =Assumptions!P93 -> 45878 | N106: =Assumptions!Q93 -> 18198.27333 | O106: =Assumptions!R93 -> 66293.71 | P106: =Assumptions!S93 -> 67619.5842 | Q106: =Assumptions!T93 -> 68971.97588 | R106: =Assumptions!U93 -> 70351.4154 | S106: =Assumptions!V93 -> 71758.44371 | T106: =Assumptions!W93 -> 73193.61258 | U106: =Assumptions!X93 -> 74657.48484 | V106: =Assumptions!Y93 -> 76150.63453
D107: Total Revenues | H107: =SUM(H104:H106) -> 52653 | I107: =SUM(I104:I106) -> 65779 | J107: 107700 | K107: 103710 | L107: 142415 | M107: 101667 | N107: 38000.78332 | O107: 143661.2316 | P107: 157790.0668 | Q107: 176119.8772 | R107: 194741.8429 | S107: 221105.4403 | T107: 251126.5578 | U107: 285308.4302 | V107: 324223.7246
B109: Operating Costs
C110: Freight Costs - Existing | H110: =Assumptions!K57 -> 3975.65 | I110: =Assumptions!L57 -> 5139.8 | J110: =Assumptions!M57 -> 18779 | K110: =Assumptions!N57 -> 25611 | L110: =Assumptions!O57 -> 32766 | M110: =Assumptions!P57 -> 31040.855 | N110: =Assumptions!Q57 -> 11501.50467 | O110: =Assumptions!R57 -> 40861.21113 | P110: =Assumptions!S57 -> 40372.01542 | Q110: =Assumptions!T57 -> 39551.72042 | R110: =Assumptions!U57 -> 38332.01305 | S110: =Assumptions!V57 -> 36631.75967 | T110: =Assumptions!W57 -> 34354.63425 | U110: =Assumptions!X57 -> 31386.30864 | V110: =Assumptions!Y57 -> 27591.12428
C111: Freight Costs - New | H111: =Assumptions!K83 -> 0 | I111: =Assumptions!L83 -> 0 | J111: =Assumptions!M83 -> 0 | K111: =Assumptions!N83 -> 0 | L111: =Assumptions!O83 -> 0 | M111: =Assumptions!P83 -> 0 | N111: =Assumptions!Q83 -> 0 | O111: =Assumptions!R83 -> 4061.527989 | P111: =Assumptions!S83 -> 15564.19092 | Q111: =Assumptions!T83 -> 29036.81482 | R111: =Assumptions!U83 -> 44775.13009 | S111: =Assumptions!V83 -> 63118.9974 | T111: =Assumptions!W83 -> 84459.11958 | U111: =Assumptions!X83 -> 109244.8003 | V111: =Assumptions!Y83 -> 137992.9173
C112: Logistics Costs | H112: =Assumptions!K95 -> 43598.35 | I112: =Assumptions!L95 -> 49141.2 | J112: =Assumptions!M95 -> 73402 | K112: =Assumptions!N95 -> 57428 | L112: =Assumptions!O95 -> 80140 | M112: =Assumptions!P95 -> 42037.74 | N112: =Assumptions!Q95 -> 16742.41147 | O112: =Assumptions!R95 -> 60990.2132 | P112: =Assumptions!S95 -> 62210.01746 | Q112: =Assumptions!T95 -> 63454.21781 | R112: =Assumptions!U95 -> 64723.30217 | S112: =Assumptions!V95 -> 66017.76821 | T112: =Assumptions!W95 -> 67338.12358 | U112: =Assumptions!X95 -> 68684.88605 | V112: =Assumptions!Y95 -> 70058.58377
D113: Total Cash Costs | H113: =SUM(H110:H112) -> 47574 | I113: 54281 | J113: 92181 | K113: 83039 | L113: 112906 | M113: 73078.595 | N113: 28243.91614 | O113: 105912.9523 | P113: 118146.2238 | Q113: 132042.7531 | R113: 147830.4453 | S113: 165768.5253 | T113: 186151.8774 | U113: 209315.995 | V113: 235642.6254
B115: Administrative Expenses
C116: Administrative Expense/Revenue | H116: =Assumptions!K100 -> 0.05564735153 | I116: =Assumptions!L100 -> 0.06679943447 | J116: =Assumptions!M100 -> 0.05583101207 | K116: =Assumptions!N100 -> 0.0755182721 | L116: =Assumptions!O100 -> 0.06375732893 | M116: =Assumptions!P100 -> 0.0742620516 | N116: =Assumptions!Q100 -> 0.05 | O116: =Assumptions!R100 -> 0.05 | P116: =Assumptions!S100 -> 0.05 | Q116: =Assumptions!T100 -> 0.05 | R116: =Assumptions!U100 -> 0.05 | S116: =Assumptions!V100 -> 0.05 | T116: =Assumptions!W100 -> 0.05 | U116: =Assumptions!X100 -> 0.05 | V116: =Assumptions!Y100 -> 0.05
C117: Administrative Expenses | H117: =H116*H107 -> 2930 | I117: 4394 | J117: 6013 | K117: 7832 | L117: 9080 | M117: 7550 | N117: 1900.039166 | O117: 7183.061582 | P117: 7889.503341 | Q117: 8805.993858 | R117: 9737.092147 | S117: 11055.27201 | T117: 12556.32789 | U117: 14265.42151 | V117: 16211.18623
C119: Profit Sharing/Revenue | H119: =Assumptions!K104 -> 0 | I119: =Assumptions!L104 -> 0.003800605056 | J119: =Assumptions!M104 -> 0.006796657382 | K119: =Assumptions!N104 -> 0.009651913991 | L119: =Assumptions!O104 -> 0.008215426746 | M119: =Assumptions!P104 -> 0.01141963469 | N119: =Assumptions!Q104 -> 0.0082 | O119: =Assumptions!R104 -> 0.0082 | P119: =Assumptions!S104 -> 0.0082 | Q119: =Assumptions!T104 -> 0.0082 | R119: =Assumptions!U104 -> 0.0082 | S119: =Assumptions!V104 -> 0.0082 | T119: =Assumptions!W104 -> 0.0082 | U119: =Assumptions!X104 -> 0.0082 | V119: =Assumptions!Y104 -> 0.0082
C120: Profit Sharing | H120: =H119*H107 -> 0 | I120: 250 | J120: 732 | K120: 1001 | L120: 1170 | M120: 1161 | N120: 311.6064233 | O120: 1178.022099 | P120: 1293.878548 | Q120: 1444.182993 | R120: 1596.883112 | S120: 1813.06461 | T120: 2059.237774 | U120: 2339.529127 | V120: 2658.634541
C122: EBITDA | H122: =H107-H113-H117-H120 -> 2149 | I122: =I107-I113-I117-I120 -> 6854 | J122: 8774 | K122: 11838 | L122: 19259 | M122: 19877.405 | N122: 7545.221594 | O122: 29387.19564 | P122: 30460.46114 | Q122: 33826.94726 | R122: 35577.42238 | S122: 42468.57837 | T122: 50359.11469 | U122: 59387.48453 | V122: 69711.27841
B124: Depreciation
C125: Existing Depreciation | H125: =Assumptions!K120 -> 891 | I125: =Assumptions!L120 -> 920 | J125: =Assumptions!M120 -> 771 | K125: =Assumptions!N120 -> 2493 | L125: =Assumptions!O120 -> 5994 | M125: =Assumptions!P120 -> 7035 | N125: =Assumptions!Q120 -> 2735.833333 | O125: =Assumptions!R120 -> 9363.693583 | P125: =Assumptions!S120 -> 9070.277602 | Q125: =Assumptions!T120 -> 8732.849224 | R125: =Assumptions!U120 -> 8344.806589 | S125: =Assumptions!V120 -> 7898.557558 | T125: =Assumptions!W120 -> 7385.371173 | U125: =Assumptions!X120 -> 6795.206831 | V125: =Assumptions!Y120 -> 6116.517837
C127: New Plant and Depreciation
D128: Opening Balance | H128: =G130 -> 0 | I128: =H130 -> 0 | J128: 0 | K128: 0 | L128: 0 | M128: 0 | N128: 0 | O128: 11205.91385 | P128: 41691.46479 | Q128: 69877.61776 | R128: 98315.79285 | S128: 125769.5476 | T128: 156258.5033 | U128: 190129.6538 | V128: 227771.2135
D129: Add: Capital Expenditures | H129: =H95 -> 0 | I129: =I95 -> 0 | J129: 0 | K129: 0 | L129: 0 | M129: 0 | N129: 11205.91385 | O129: 30485.55093 | P129: 28186.15298 | Q129: 28438.17508 | R129: 27453.75479 | S129: 30488.95569 | T129: 33871.1505 | U129: 37641.55966 | V129: 41846.50387
D130: Closing Balance | H130: =SUM(H128:H129) -> 0 | I130: =SUM(I128:I129) -> 0 | J130: 0 | K130: 0 | L130: 0 | M130: 0 | N130: 11205.91385 | O130: 41691.46479 | P130: 69877.61776 | Q130: 98315.79285 | R130: 125769.5476 | S130: 156258.5033 | T130: 190129.6538 | U130: 227771.2135 | V130: 269617.7174
D132: New Depreciation Expense | G132: =1/Assumptions!I129 -> 0.08695652174 | H132: =H130*$G$132 -> 0 | I132: =I130*$G$132 -> 0 | J132: 0 | K132: 0 | L132: 0 | M132: 0 | N132: 974.4272917 | O132: 3625.344764 | P132: 6076.314588 | Q132: 8549.199378 | R132: 10936.4824 | S132: 13587.69594 | T132: 16533.01338 | U132: 19806.19248 | V132: 23445.0189
D133: Accumulated Depreciation | H133: =G133+H132 -> 0 | I133: =H133+I132 -> 0 | J133: 0 | K133: 0 | L133: 0 | M133: 0 | N133: 974.4272917 | O133: 4599.772056 | P133: 10676.08664 | Q133: 19225.28602 | R133: 30161.76843 | S133: 43749.46437 | T133: 60282.47774 | U133: 80088.67022 | V133: 103533.6891
C135: Existing Plant Balance
D136: Opening Balance | H136: =G138 -> 0 | I136: =H138 -> 9874 | J136: 18598 | K136: 37911 | L136: 38032.133 | M136: 69426.072 | N136: 112364.323 | O136: 108843.3312 | P136: 104794.1907 | Q136: 100137.6791 | R136: 94782.6907 | S136: 88624.45408 | T136: 81542.48197 | U136: 73398.21404 | V136: 64032.30592
D137: Less: Retirements | H137: =Assumptions!K121 -> 0 | I137: =Assumptions!L121 -> 0 | J137: =Assumptions!M121 -> 0 | K137: =Assumptions!N121 -> 0 | L137: =Assumptions!O121 -> 0 | M137: =Assumptions!P121 -> 0 | N137: =Assumptions!Q121 -> 3520.991774 | O137: =Assumptions!R121 -> 4049.14054 | P137: =Assumptions!S121 -> 4656.511621 | Q137: =Assumptions!T121 -> 5354.988365 | R137: =Assumptions!U121 -> 6158.236619 | S137: =Assumptions!V121 -> 7081.972112 | T137: =Assumptions!W121 -> 8144.267929 | U137: =Assumptions!X121 -> 9365.908118 | V137: =Assumptions!Y121 -> 10770.79434
D138: Closing Balance | H138: =IF(H4,H25,H136-H137) -> 9874 | I138: =IF(I4,I25,I136-I137) -> 18598 | J138: 37911 | K138: 38032.133 | L138: 69426.072 | M138: 112364.323 | N138: 108843.3312 | O138: 104794.1907 | P138: 100137.6791 | Q138: 94782.6907 | R138: 88624.45408 | S138: 81542.48197 | T138: 73398.21404 | U138: 64032.30592 | V138: 53261.51159
C140: Accumulated Deprecitation
D141: Opening Balance | H141: =G144 -> 0 | I141: =H144 -> 0 | J141: 0 | K141: 0 | L141: 7794.332 | M141: 13112.786 | N141: 23007.382 | O141: 22222.22356 | P141: 27536.7766 | Q141: 31950.54258 | R141: 35328.40344 | S141: 37514.97341 | T141: 38331.55886 | U141: 37572.6621 | V141: 35001.96081
D142: Add: Depreciation | H142: =H125 -> 891 | I142: =I125 -> 920 | J142: 771 | K142: 2493 | L142: 5994 | M142: 7035 | N142: 2735.833333 | O142: 9363.693583 | P142: 9070.277602 | Q142: 8732.849224 | R142: 8344.806589 | S142: 7898.557558 | T142: 7385.371173 | U142: 6795.206831 | V142: 6116.517837
D143: Less: Retirements | H143: =H137 -> 0 | I143: =I137 -> 0 | J143: 0 | K143: 0 | L143: 0 | M143: 0 | N143: 3520.991774 | O143: 4049.14054 | P143: 4656.511621 | Q143: 5354.988365 | R143: 6158.236619 | S143: 7081.972112 | T143: 8144.267929 | U143: 9365.908118 | V143: 10770.79434
D144: Closing Balance | H144: =IF(H4,-H26,H141+H142-H143) -> 0 | I144: =IF(I4,-I26,I141+I142-I143) -> 0 | J144: 0 | K144: 7794.332 | L144: 13112.786 | M144: 23007.382 | N144: 22222.22356 | O144: 27536.7766 | P144: 31950.54258 | Q144: 35328.40344 | R144: 37514.97341 | S144: 38331.55886 | T144: 37572.6621 | U144: 35001.96081 | V144: 30347.68432
D146: Total Depreciation | H146: =H125+H132 -> 891 | I146: =I125+I132 -> 920 | J146: 771 | K146: 2493 | L146: 5994 | M146: 7035 | N146: 3710.260625 | O146: 12989.03835 | P146: 15146.59219 | Q146: 17282.0486 | R146: 19281.28899 | S146: 21486.2535 | T146: 23918.38455 | U146: 26601.39931 | V146: 29561.53674
A148: Working Capital
B149: A/R Percent of Revenues | H149: =Assumptions!K134 -> 0.15 | I149: =Assumptions!L134 -> 0.15 | J149: =Assumptions!M134 -> 0.15 | K149: =Assumptions!N134 -> 0.1250384148 | L149: =Assumptions!O134 -> 0.09968044096 | M149: =Assumptions!P134 -> 0.1532867444 | N149: =Assumptions!Q134 -> 0.15 | O149: =Assumptions!R134 -> 0.15 | P149: =Assumptions!S134 -> 0.15 | Q149: =Assumptions!T134 -> 0.15 | R149: =Assumptions!U134 -> 0.15 | S149: =Assumptions!V134 -> 0.15 | T149: =Assumptions!W134 -> 0.15 | U149: =Assumptions!X134 -> 0.15 | V149: =Assumptions!Y134 -> 0.15
B150: Revenues | H150: =H107/H3 -> 52653 | I150: =I107/I3 -> 65779 | J150: 107700 | K150: 103710 | L150: 142415 | M150: 141204.1667 | N150: 135717.0833 | O150: 143661.2316 | P150: 157790.0668 | Q150: 176119.8772 | R150: 194741.8429 | S150: 221105.4403 | T150: 251126.5578 | U150: 285308.4302 | V150: 324223.7246
B151: A/R Amount | H151: =IF(OR(H9,NOT(H4)),H150*H149)*1 -> 0 | I151: =IF(OR(I9,NOT(I4)),I150*I149)*1 -> 0 | J151: 0 | K151: 12967.734 | L151: 14195.99 | M151: 21644.727 | N151: 20357.56249 | O151: 21549.18475 | P151: 23668.51002 | Q151: 26417.98157 | R151: 29211.27644 | S151: 33165.81604 | T151: 37668.98367 | U151: 42796.26453 | V151: 48633.55869
B153: Other Current Assets Perent of Revenue | H153: =Assumptions!K138 -> 0.11 | I153: =Assumptions!L138 -> 0.11 | J153: =Assumptions!M138 -> 0.11 | K153: =Assumptions!N138 -> 0.009127576897 | L153: =Assumptions!O138 -> 0.02496013763 | M153: =Assumptions!P138 -> 0.08778423677 | N153: =Assumptions!Q138 -> 0.11 | O153: =Assumptions!R138 -> 0.11 | P153: =Assumptions!S138 -> 0.11 | Q153: =Assumptions!T138 -> 0.11 | R153: =Assumptions!U138 -> 0.11 | S153: =Assumptions!V138 -> 0.11 | T153: =Assumptions!W138 -> 0.11 | U153: =Assumptions!X138 -> 0.11 | V153: =Assumptions!Y138 -> 0.11
B154: Revenues | H154: =H150 -> 52653 | I154: =I150 -> 65779 | J154: 107700 | K154: 103710 | L154: 142415 | M154: 141204.1667 | N154: 135717.0833 | O154: 143661.2316 | P154: 157790.0668 | Q154: 176119.8772 | R154: 194741.8429 | S154: 221105.4403 | T154: 251126.5578 | U154: 285308.4302 | V154: 324223.7246
B155: Other Current Assets Amount | H155: =IF(OR(H12,NOT(H4)),H153*H154)*1 -> 0 | I155: =IF(OR(I12,NOT(I4)),I153*I154)*1 -> 0 | J155: 0 | K155: 946.621 | L155: 3554.698 | M155: 12395.5 | N155: 14928.87916 | O155: 15802.73548 | P155: 17356.90735 | Q155: 19373.18649 | R155: 21421.60272 | S155: 24321.59843 | T155: 27623.92135 | U155: 31383.92732 | V155: 35664.6097
B157: A/P as Percent of Cash Op Expenses | H157: =Assumptions!K142 -> 0.09086896204 | I157: =Assumptions!L142 -> 0.1903612682 | J157: =Assumptions!M142 -> 0.1759147764 | K157: =Assumptions!N142 -> 0.1123220294 | L157: =Assumptions!O142 -> 0.1147164898 | M157: =Assumptions!P142 -> 0.08396626454 | N157: =Assumptions!Q142 -> 0.08 | O157: =Assumptions!R142 -> 0.08 | P157: =Assumptions!S142 -> 0.08 | Q157: =Assumptions!T142 -> 0.08 | R157: =Assumptions!U142 -> 0.08 | S157: =Assumptions!V142 -> 0.08 | T157: =Assumptions!W142 -> 0.08 | U157: =Assumptions!X142 -> 0.08 | V157: =Assumptions!Y142 -> 0.08
B158: Cash Operating Costs | H158: =H113/H3 -> 47574 | I158: =I113/I3 -> 54281 | J158: 92181 | K158: 83039 | L158: 112906 | M158: 101498.0486 | N158: 100871.1291 | O158: 105912.9523 | P158: 118146.2238 | Q158: 132042.7531 | R158: 147830.4453 | S158: 165768.5253 | T158: 186151.8774 | U158: 209315.995 | V158: 235642.6254
B159: Accounts Payable | H159: =H157*H158 -> 4323 | I159: =I157*I158 -> 10333 | J159: 16216 | K159: 9327.109 | L159: 12952.18 | M159: 8522.412 | N159: 8069.690326 | O159: 8473.036185 | P159: 9451.697904 | Q159: 10563.42024 | R159: 11826.43562 | S159: 13261.48202 | T159: 14892.15019 | U159: 16745.2796 | V159: 18851.41003
B161: Other CL as Percent of Revenue | H161: =Assumptions!K146 -> 0.13 | I161: =Assumptions!L146 -> 0.13 | J161: =Assumptions!M146 -> 0.13 | K161: =Assumptions!N146 -> 0.03242648732 | L161: =Assumptions!O146 -> 0.02741235825 | M161: =Assumptions!P146 -> 0.1377121261 | N161: =Assumptions!Q146 -> 0.13 | O161: =Assumptions!R146 -> 0.13 | P161: =Assumptions!S146 -> 0.13 | Q161: =Assumptions!T146 -> 0.13 | R161: =Assumptions!U146 -> 0.13 | S161: =Assumptions!V146 -> 0.13 | T161: =Assumptions!W146 -> 0.13 | U161: =Assumptions!X146 -> 0.13 | V161: =Assumptions!Y146 -> 0.13
B162: Revenues | H162: =H154 -> 52653 | I162: =I154 -> 65779 | J162: 107700 | K162: 103710 | L162: 142415 | M162: 141204.1667 | N162: 135717.0833 | O162: 143661.2316 | P162: 157790.0668 | Q162: 176119.8772 | R162: 194741.8429 | S162: 221105.4403 | T162: 251126.5578 | U162: 285308.4302 | V162: 324223.7246
B163: Other CL | H163: =IF(OR(H33,NOT(H4)),H161*H162)*1 -> 0 | I163: =IF(OR(I33,NOT(I4)),I161*I162)*1 -> 0 | J163: 0 | K163: 3362.951 | L163: 3903.931 | M163: 19445.526 | N163: 17643.22083 | O163: 18675.96011 | P163: 20512.70869 | Q163: 22895.58403 | R163: 25316.43958 | S163: 28743.70724 | T163: 32646.45251 | U163: 37090.09592 | V163: 42149.08419
B165: Total Working Capital | H165: =H151+H155-H159-H163 -> -4323 | I165: =I151+I155-I159-I163 -> -10333 | J165: -16216 | K165: 1224.295 | L165: 894.577 | M165: 6072.289 | N165: 9573.530503 | O165: 10202.92393 | P165: 11061.01078 | Q165: 12332.16379 | R165: 13490.00396 | S165: 15482.22521 | T165: 17754.30232 | U165: 20344.81632 | V165: 23297.67416
B166: Change in Working Capital | I166: =I165-H165 -> -6010 | J166: =J165-I165 -> -5883 | K166: 17440.295 | L166: -329.718 | M166: 5177.712 | N166: 3501.241503 | O166: 629.3934244 | P166: 858.0868561 | Q166: 1271.153003 | R166: 1157.840172 | S166: 1992.221255 | T166: 2272.077103 | U166: 2590.514005 | V166: 2952.857841
A168: Financing
B169: Minimum Cash as Percent of Revnues | H169: =Assumptions!K151 -> 0.02 | I169: =Assumptions!L151 -> 0.02 | J169: =Assumptions!M151 -> 0.02 | K169: =Assumptions!N151 -> 0.03665391958 | L169: =Assumptions!O151 -> 0.04047259067 | M169: =Assumptions!P151 -> 0.05313922512 | N169: =Assumptions!Q151 -> 0.02 | O169: =Assumptions!R151 -> 0.02 | P169: =Assumptions!S151 -> 0.02 | Q169: =Assumptions!T151 -> 0.02 | R169: =Assumptions!U151 -> 0.02 | S169: =Assumptions!V151 -> 0.02 | T169: =Assumptions!W151 -> 0.02 | U169: =Assumptions!X151 -> 0.02 | V169: =Assumptions!Y151 -> 0.02
B170: Revenues | H170: =H107/H3 -> 52653 | I170: =I107/I3 -> 65779 | J170: 107700 | K170: 103710 | L170: 142415 | M170: 141204.1667 | N170: 135717.0833 | O170: 143661.2316 | P170: 157790.0668 | Q170: 176119.8772 | R170: 194741.8429 | S170: 221105.4403 | T170: 251126.5578 | U170: 285308.4302 | V170: 324223.7246
B171: Minimum Cash | H171: =H169*H170 -> 1053.06 | I171: =I169*I170 -> 1315.58 | J171: 2154 | K171: 3801.378 | L171: 5763.904 | M171: 7503.48 | N171: 2714.341666 | O171: 2873.224633 | P171: 3155.801337 | Q171: 3522.397543 | R171: 3894.836859 | S171: 4422.108806 | T171: 5022.531155 | U171: 5706.168604 | V171: 6484.474491
B173: Cash Balance
C174: Opening Balance | H174: =G177 -> 0 | I174: =H177 -> 0 | J174: 0 | K174: 0 | L174: 3801.378 | M174: 5763.904 | N174: 7503.48 | O174: 0 | P174: 0 | Q174: 0 | R174: 0 | S174: 0 | T174: 0 | U174: 0 | V174: 0
C175: Less: Reduction if Negative Cash Flow | H175: =H239 -> 0 | I175: =I239 -> 0 | J175: 0 | K175: 0 | L175: 0 | M175: 0 | N175: 7503.48 | O175: 0 | P175: 0 | Q175: 0 | R175: 0 | S175: 0 | T175: 0 | U175: 0 | V175: 0
C176: Add: Increase from Positive Cash Flow | H176: =H242 -> 1904 | I176: =I242 -> 8668 | J176: 10938 | K176: 0 | L176: 0 | M176: 0 | N176: 0 | O176: 0 | P176: 0 | Q176: 0 | R176: 0 | S176: 0 | T176: 0 | U176: 0 | V176: 0
C177: Closing Balance | H177: =IF(H4,H8,H174-H175+H176) -> 0 | I177: =IF(I4,I8,I174-I175+I176) -> 0 | J177: 0 | K177: 3801.378 | L177: 5763.904 | M177: 7503.48 | N177: 0 | O177: 0 | P177: 0 | Q177: 0 | R177: 0 | S177: 0 | T177: 0 | U177: 0 | V177: 0
C179: Minimum Test | H179: =H174 -> 0 | I179: =I174 -> 0 | J179: 0 | K179: 0 | L179: 3801.378 | M179: 5763.904 | N179: 7503.48 | O179: 0 | P179: 0 | Q179: 0 | R179: 0 | S179: 0 | T179: 0 | U179: 0 | V179: 0
C180: Interest Income Rate | H180: =Assumptions!K153 -> 0.02 | I180: =Assumptions!L153 -> 0.02 | J180: =Assumptions!M153 -> 0.02 | K180: =Assumptions!N153 -> 0.02 | L180: =Assumptions!O153 -> 0.02 | M180: =Assumptions!P153 -> 0.02 | N180: =Assumptions!Q153 -> 0.02 | O180: =Assumptions!R153 -> 0.02 | P180: =Assumptions!S153 -> 0.02 | Q180: =Assumptions!T153 -> 0.02 | R180: =Assumptions!U153 -> 0.02 | S180: =Assumptions!V153 -> 0.02 | T180: =Assumptions!W153 -> 0.02 | U180: =Assumptions!X153 -> 0.02 | V180: =Assumptions!Y153 -> 0.02
C181: Interest Income | H181: =IF(H4,0,H174*H180) -> 0 | I181: =IF(I4,0,I174*I180) -> 0 | J181: 0 | K181: 0 | L181: 0 | M181: 0 | N181: 150.0696 | O181: 0 | P181: 0 | Q181: 0 | R181: 0 | S181: 0 | T181: 0 | U181: 0 | V181: 0
B183: Debt Balance
C184: Opening Balance | H184: =G187 -> 0 | I184: =H187 -> 2367 | J184: 976 | K184: 9145 | L184: 16981.205 | M184: 36911.542 | N184: 35146.73 | O184: 41552.33608 | P184: 54902.89752 | Q184: 63874.68701 | R184: 74165.51831 | S184: 78831.14367 | T184: 84327.68487 | U184: 90440.5461 | V184: 97256.32225
C185: Less: Reduction if Positive Cash Flow | H185: =H240 -> 0 | I185: =I240 -> 2367 | J185: 976 | K185: 0 | L185: 11021.718 | M185: 8824.693 | N185: 0 | O185: 0 | P185: 0 | Q185: 0 | R185: 0 | S185: 0 | T185: 0 | U185: 0 | V185: 0
C186: Add: Increase from Negative Cash Flow | H186: =H243 -> 0 | I186: =I243 -> 0 | J186: 0 | K186: 10531.295 | L186: 0 | M186: 0 | N186: 6405.606078 | O186: 13350.56144 | P186: 8971.789493 | Q186: 10290.83129 | R186: 4665.625367 | S186: 5496.54119 | T186: 6112.86123 | U186: 6815.776157 | V186: 7618.027846
C187: Closing Balance | H187: =IF(H4,H45,H184-H185+H186) -> 2367 | I187: =IF(I4,I45,I184-I185+I186) -> 976 | J187: 9145 | K187: 16981.205 | L187: 36911.542 | M187: 35146.73 | N187: 41552.33608 | O187: 54902.89752 | P187: 63874.68701 | Q187: 74165.51831 | R187: 78831.14367 | S187: 84327.68487 | T187: 90440.5461 | U187: 97256.32225 | V187: 104874.3501
C189: Interest Expense Rate | H189: =Assumptions!K113 -> 0.0663286861 | I189: =Assumptions!L113 -> 0.08016751421 | J189: =Assumptions!M113 -> 0.06777986365 | K189: =Assumptions!N113 -> 0.09071351924 | L189: =Assumptions!O113 -> 0.06898887526 | M189: =Assumptions!P113 -> 0.06973522762 | N189: =Assumptions!Q113 -> 0.08 | O189: =Assumptions!R113 -> 0.08 | P189: =Assumptions!S113 -> 0.08 | Q189: =Assumptions!T113 -> 0.08 | R189: =Assumptions!U113 -> 0.08 | S189: =Assumptions!V113 -> 0.08 | T189: =Assumptions!W113 -> 0.08 | U189: =Assumptions!X113 -> 0.08 | V189: =Assumptions!Y113 -> 0.08
C190: Interest Expense | H190: =IF(H4,-H62,H189*H184) -> 157 | I190: =IF(I4,-I62,I189*I184) -> 134 | J190: 343 | K190: 1185 | L190: 1859 | M190: 1809 | N190: 2811.7384 | O190: 3324.186886 | P190: =IF(P4,-P62,P189*P184) -> 4392.231802 | Q190: 5109.974961 | R190: =IF(R4,-R62,R189*R184) -> 5933.241465 | S190: 6306.491494 | T190: 6746.214789 | U190: 7235.243688 | V190: 7780.50578
C192: Other Income | H192: =Assumptions!K106 -> 287 | I192: =Assumptions!L106 -> 918 | J192: =Assumptions!M106 -> 746 | K192: =Assumptions!N106 -> -601 | L192: =Assumptions!O106 -> -3940 | M192: =Assumptions!P106 -> 579 | N192: =Assumptions!Q106 -> 0 | O192: =Assumptions!R106 -> 0 | P192: =Assumptions!S106 -> 0 | Q192: =Assumptions!T106 -> 0 | R192: =Assumptions!U106 -> 0 | S192: =Assumptions!V106 -> 0 | T192: =Assumptions!W106 -> 0 | U192: =Assumptions!X106 -> 0 | V192: =Assumptions!Y106 -> 0
C193: Deferred Taxes | H193: =Assumptions!K107 -> 0 | I193: =Assumptions!L107 -> 0 | J193: =Assumptions!M107 -> 0 | K193: =Assumptions!N107 -> 1316.365 | L193: =Assumptions!O107 -> 2421.48 | M193: =Assumptions!P107 -> 2544.9 | N193: =Assumptions!Q107 -> 2544.9 | O193: =Assumptions!R107 -> 2544.9 | P193: =Assumptions!S107 -> 2544.9 | Q193: =Assumptions!T107 -> 2544.9 | R193: =Assumptions!U107 -> 2544.9 | S193: =Assumptions!V107 -> 2544.9 | T193: =Assumptions!W107 -> 2544.9 | U193: =Assumptions!X107 -> 2544.9 | V193: =Assumptions!Y107 -> 2544.9
C195: Income Tax Rate | H195: =Assumptions!K117 -> 0.2701729107 | I195: =Assumptions!L117 -> 0.3889550461 | J195: =Assumptions!M117 -> 0.3742564835 | K195: =Assumptions!N117 -> 0.4157957402 | L195: =Assumptions!O117 -> 0.3707473882 | M195: =Assumptions!P117 -> 0.4000032724 | N195: =Assumptions!Q117 -> 0 | O195: =Assumptions!R117 -> 0 | P195: =Assumptions!S117 -> 0 | Q195: =Assumptions!T117 -> 0 | R195: =Assumptions!U117 -> 0 | S195: =Assumptions!V117 -> 0 | T195: =Assumptions!W117 -> 0 | U195: =Assumptions!X117 -> 0 | V195: =Assumptions!Y117 -> 0
A197: Profit and Loss
B198: Revenue
C199: Existing Freight | H199: =H104 -> 6760 | I199: =I104 -> 12939 | J199: 28285 | K199: 41117 | L199: 52922 | M199: 55789 | N199: 19802.50999 | O199: 70352.05954 | P199: 65022.17087 | Q199: 61702.64069 | R199: 57273.63257 | S199: 54733.2054 | T199: 51330.84706 | U199: 46895.73455 | V199: 41225.17417
C200: New Freight | H200: =H105 -> 0 | I200: =I105 -> 0 | J200: 0 | K200: 0 | L200: 0 | M200: 0 | N200: 0 | O200: 7015.462099 | P200: 25148.31176 | Q200: 45445.2606 | R200: 67116.79498 | S200: 94613.79117 | T200: 126602.0981 | U200: 163755.2108 | V200: 206847.9159
C201: Logistics | H201: =H106 -> 45893 | I201: =I106 -> 52840 | J201: 79415 | K201: 62593 | L201: 89493 | M201: 45878 | N201: 18198.27333 | O201: 66293.71 | P201: 67619.5842 | Q201: 68971.97588 | R201: 70351.4154 | S201: 71758.44371 | T201: 73193.61258 | U201: 74657.48484 | V201: 76150.63453
D202: Total | H202: =SUM(H199:H201) -> 52653 | I202: =SUM(I199:I201) -> 65779 | J202: 107700 | K202: 103710 | L202: 142415 | M202: 101667 | N202: 38000.78332 | O202: 143661.2316 | P202: 157790.0668 | Q202: 176119.8772 | R202: 194741.8429 | S202: 221105.4403 | T202: 251126.5578 | U202: 285308.4302 | V202: 324223.7246
B203: Operating Costs - Cash
C204: Existing Freight | H204: =H110 -> 3975.65 | I204: =I110 -> 5139.8 | J204: 18779 | K204: 25611 | L204: 32766 | M204: 31040.855 | N204: 11501.50467 | O204: 40861.21113 | P204: 40372.01542 | Q204: 39551.72042 | R204: 38332.01305 | S204: 36631.75967 | T204: 34354.63425 | U204: 31386.30864 | V204: 27591.12428
C205: New Freight | H205: =H111 -> 0 | I205: =I111 -> 0 | J205: 0 | K205: 0 | L205: 0 | M205: 0 | N205: 0 | O205: 4061.527989 | P205: 15564.19092 | Q205: 29036.81482 | R205: 44775.13009 | S205: 63118.9974 | T205: 84459.11958 | U205: 109244.8003 | V205: 137992.9173
C206: Logistics | H206: =H112 -> 43598.35 | I206: =I112 -> 49141.2 | J206: 73402 | K206: 57428 | L206: 80140 | M206: 42037.74 | N206: 16742.41147 | O206: 60990.2132 | P206: 62210.01746 | Q206: 63454.21781 | R206: 64723.30217 | S206: 66017.76821 | T206: 67338.12358 | U206: 68684.88605 | V206: 70058.58377
C207: Administrative | H207: =H117 -> 2930 | I207: =I117 -> 4394 | J207: 6013 | K207: 7832 | L207: 9080 | M207: 7550 | N207: 1900.039166 | O207: 7183.061582 | P207: 7889.503341 | Q207: 8805.993858 | R207: 9737.092147 | S207: 11055.27201 | T207: 12556.32789 | U207: 14265.42151 | V207: 16211.18623
C208: Profit Sharing | H208: =H120 -> 0 | I208: =I120 -> 250 | J208: 732 | K208: 1001 | L208: 1170 | M208: 1161 | N208: 311.6064233 | O208: 1178.022099 | P208: 1293.878548 | Q208: 1444.182993 | R208: 1596.883112 | S208: 1813.06461 | T208: 2059.237774 | U208: 2339.529127 | V208: 2658.634541
D209: Total | H209: =SUM(H204:H208) -> 50504 | I209: =SUM(I204:I208) -> 58925 | J209: 98926 | K209: 91872 | L209: 123156 | M209: 81789.595 | N209: 30455.56173 | O209: 114274.036 | P209: 127329.6057 | Q209: 142292.9299 | R209: 159164.4206 | S209: 178636.8619 | T209: 200767.4431 | U209: 225920.9456 | V209: 254512.4462
C210: EBITDA | H210: =H202-H209 -> 2149 | I210: =I202-I209 -> 6854 | J210: 8774 | K210: =K202-K209 -> 11838 | L210: 19259 | M210: 19877.405 | N210: 7545.221594 | O210: 29387.19564 | P210: 30460.46114 | Q210: 33826.94726 | R210: 35577.42238 | S210: 42468.57837 | T210: 50359.11469 | U210: 59387.48453 | V210: 69711.27841
D211: Less: Depreciation Expense | H211: =H146 -> 891 | I211: =I146 -> 920 | J211: 771 | K211: 2493 | L211: 5994 | M211: 7035 | N211: 3710.260625 | O211: 12989.03835 | P211: 15146.59219 | Q211: 17282.0486 | R211: 19281.28899 | S211: 21486.2535 | T211: 23918.38455 | U211: 26601.39931 | V211: 29561.53674
C212: EBIT | H212: =H210-H211 -> 1258 | I212: =I210-I211 -> 5934 | J212: 8003 | K212: 9345 | L212: 13265 | M212: 12842.405 | N212: 3834.960969 | O212: 16398.15729 | P212: 15313.86895 | Q212: 16544.89865 | R212: 16296.13339 | S212: 20982.32487 | T212: 26440.73014 | U212: 32786.08522 | V212: 40149.74167
D213: Less: Interest Expense | H213: =H190 -> 157 | I213: =I190 -> 134 | J213: 343 | K213: 1185 | L213: 1859 | M213: 1809 | N213: 2811.7384 | O213: 3324.186886 | P213: 4392.231802 | Q213: 5109.974961 | R213: 5933.241465 | S213: 6306.491494 | T213: 6746.214789 | U213: 7235.243688 | V213: 7780.50578
D214: Add: Interest Income | H214: =H181 -> 0 | I214: =I181 -> 0 | J214: 0 | K214: 0 | L214: 0 | M214: 0 | N214: 150.0696 | O214: 0 | P214: 0 | Q214: 0 | R214: 0 | S214: 0 | T214: 0 | U214: 0 | V214: 0
D215: Add: Other Income | H215: =H192 -> 287 | I215: =I192 -> 918 | J215: 746 | K215: -601 | L215: -3940 | M215: 579 | N215: 0 | O215: 0 | P215: 0 | Q215: 0 | R215: 0 | S215: 0 | T215: 0 | U215: 0 | V215: 0
C216: EBT | H216: =H212-H213+H214+H215 -> 1388 | I216: =I212-I213+I214+I215 -> 6718 | J216: 8406 | K216: 7559 | L216: 7466 | M216: 11612.405 | N216: 1173.292169 | O216: 13073.97041 | P216: 10921.63715 | Q216: 11434.92369 | R216: 10362.89192 | S216: 14675.83338 | T216: 19694.51535 | U216: 25550.84153 | V216: 32369.23589
D217: Less: Tax | H217: =H216*H195 -> 375 | I217: =I216*I195 -> 2613 | J217: 3146 | K217: 3143 | L217: 2768 | M217: 4645 | N217: 0 | O217: 0 | P217: 0 | Q217: 0 | R217: 0 | S217: 0 | T217: 0 | U217: 0 | V217: 0
C218: Earnings | H218: =H216-H217 -> 1013 | I218: =I216-I217 -> 4105 | J218: 5260 | K218: 4416 | L218: 4698 | M218: 6967.405 | N218: 1173.292169 | O218: 13073.97041 | P218: 10921.63715 | Q218: 11434.92369 | R218: 10362.89192 | S218: 14675.83338 | T218: 19694.51535 | U218: 25550.84153 | V218: 32369.23589
C220: Actual EBIT | H220: =H60+H59 -> 1258 | I220: 5934 | J220: 8003 | K220: 9345 | L220: 13265 | M220: 12842.405
L221: =L220-L212 -> 0
C222: Actual NI | H222: =H67 -> 1013 | I222: 4105 | J222: 5260 | K222: 4416 | L222: 4698 | M222: 6967.405 | N222: 0 | O222: 0 | P222: 0 | Q222: 0 | R222: 0 | S222: 0 | T222: 0 | U222: 0 | V222: 0
C223: Difference | H223: =H222-H218 -> 0 | I223: 0 | J223: 0 | K223: 0 | L223: 0 | M223: 0 | N223: -1173.292169 | O223: -13073.97041 | P223: -10921.63715 | Q223: -11434.92369 | R223: -10362.89192 | S223: -14675.83338 | T223: -19694.51535 | U223: -25550.84153 | V223: -32369.23589
A225: Cash Flow
C226: EBITDA | H226: =H210 -> 2149 | I226: 6854 | J226: 8774 | K226: 11838 | L226: 19259 | M226: 19877.405 | N226: 7545.221594 | O226: 29387.19564 | P226: 30460.46114 | Q226: 33826.94726 | R226: 35577.42238 | S226: 42468.57837 | T226: 50359.11469 | U226: 59387.48453 | V226: 69711.27841
C227: Less: Taxes | H227: =H217 -> 375 | I227: 2613 | J227: 3146 | K227: 3143 | L227: 2768 | M227: 4645 | N227: 0 | O227: 0 | P227: 0 | Q227: 0 | R227: 0 | S227: 0 | T227: 0 | U227: 0 | V227: 0
C228: Less: Working Capital Change | H228: =H166 -> 0 | I228: -6010 | J228: -5883 | K228: 17440.295 | L228: -329.718 | M228: 5177.712 | N228: 3501.241503 | O228: 629.3934244 | P228: 858.0868561 | Q228: 1271.153003 | R228: 1157.840172 | S228: 1992.221255 | T228: 2272.077103 | U228: 2590.514005 | V228: 2952.857841
D229: Operating Cash Flow | H229: =H226-H227-H228 -> 1774 | I229: =I226-I227-I228 -> 10251 | J229: 11511 | K229: -8745.295 | L229: 16820.718 | M229: 10054.693 | N229: 4043.980091 | O229: 28757.80222 | P229: 29602.37428 | Q229: 32555.79425 | R229: 34419.58221 | S229: 40476.35712 | T229: 48087.03759 | U229: 56796.97052 | V229: 66758.42057
C230: Less: Capital Expenditures | H230: =H95 -> 0 | I230: 0 | J230: 0 | K230: 0 | L230: 0 | M230: 0 | N230: 11205.91385 | O230: 30485.55093 | P230: 28186.15298 | Q230: 28438.17508 | R230: 27453.75479 | S230: 30488.95569 | T230: 33871.1505 | U230: 37641.55966 | V230: 41846.50387
D231: Cash Flow before Financing | H231: =H229-H230 -> 1774 | I231: =I229-I230 -> 10251 | J231: 11511 | K231: -8745.295 | L231: 16820.718 | M231: 10054.693 | N231: -7161.933763 | O231: -1727.748717 | P231: 1416.221305 | Q231: 4117.619171 | R231: 6965.827417 | S231: 9987.401425 | T231: 14215.8871 | U231: 19155.41086 | V231: 24911.9167
C232: Less: Interest Expense | H232: =H213 -> 157 | I232: 134 | J232: 343 | K232: 1185 | L232: 1859 | M232: 1809 | N232: 2811.7384 | O232: 3324.186886 | P232: 4392.231802 | Q232: 5109.974961 | R232: 5933.241465 | S232: 6306.491494 | T232: 6746.214789 | U232: 7235.243688 | V232: 7780.50578
C233: Add: Other Income | H233: =H215 -> 287 | I233: 918 | J233: 746 | K233: -601 | L233: -3940 | M233: 579 | N233: 0 | O233: 0 | P233: 0 | Q233: 0 | R233: 0 | S233: 0 | T233: 0 | U233: 0 | V233: 0
C234: Add: Interest Income | H234: =H214 -> 0 | I234: 0 | J234: 0 | K234: 0 | L234: 0 | M234: 0 | N234: 150.0696 | O234: 0 | P234: 0 | Q234: 0 | R234: 0 | S234: 0 | T234: 0 | U234: 0 | V234: 0
C235: Less: Dividend | O235: 0 | P235: 0 | Q235: 0 | R235: 0 | S235: 0 | T235: 0 | U235: 0 | V235: 0
C236: Net Cash Flow Before Equity | H236: =H231-H232+H233+H234-H235 -> 1904 | I236: =I231-I232+I233+I234-I235 -> 11035 | J236: 11914 | K236: -10531.295 | L236: 11021.718 | M236: 8824.693 | N236: -9823.602563 | O236: =O231-O232+O233+O234-O235 -> -5051.935603 | P236: =P231-P232+P233+P234-P235 -> -2976.010496 | Q236: -992.3557904 | R236: 1032.585953 | S236: 3680.909932 | T236: 7469.672306 | U236: 11920.16717 | V236: 17131.41092
C237: Add: Equity Issuance (Share Buyback) | N237: =N291 -> -4085.483515 | O237: =O291 -> -8298.625839 | P237: -5995.778996 | Q237: -9298.475504 | R237: -5698.21132 | S237: -9177.451122 | T237: -13582.53354 | U237: -18735.94333 | V237: -24749.43877
D238: Net Cash Flow | H238: =H236+H237 -> 1904 | I238: =I236+I237 -> 11035 | J238: 11914 | K238: -10531.295 | L238: 11021.718 | M238: 8824.693 | N238: -13909.08608 | O238: =O236+O237 -> -13350.56144 | P238: =P236+P237 -> -8971.789493 | Q238: =Q236+Q237 -> -10290.83129 | R238: =R236+R237 -> -4665.625367 | S238: =S236+S237 -> -5496.54119 | T238: -6112.86123 | U238: -6815.776157 | V238: -7618.027846
C239: Add: Cash Reduction if Cash is Negative | H239: =MAX(MIN(-H238,H179),0) -> 0 | I239: =MAX(MIN(-I238,I179),0) -> 0 | J239: 0 | K239: 0 | L239: 0 | M239: 0 | N239: =MAX(MIN(-N238,N179),0) -> 7503.48 | O239: =MAX(MIN(-O238,O179),0) -> 0 | P239: =MAX(MIN(-P238,P179),0) -> 0 | Q239: 0 | R239: 0 | S239: 0 | T239: 0 | U239: 0 | V239: 0
... 64 more rows

Sheet Project Analysis
B2: Inflation | C2: 0.02
B3: IRR | C3: =Assumptions!H19 -> 0.13
B4: Life | C4: 11
B5: Tax Rate | C5: 0.4
B7: Year | C7: 0 | D7: 1 | E7: 2 | F7: 3 | G7: 4 | H7: 5 | I7: 6 | J7: 7 | K7: 8 | L7: 9 | M7: 10 | N7: 11 | O7: 12 | P7: 13 | Q7: 14 | R7: 15 | S7: 16 | T7: 17 | U7: 18 | V7: 19 | W7: 20
B8: Switch | D8: =D7<=$C$4 -> TRUE | E8: =E7<=$C$4 -> TRUE | F8: TRUE | G8: TRUE | H8: TRUE | I8: TRUE | J8: TRUE | K8: TRUE | L8: TRUE | M8: TRUE | N8: TRUE | O8: FALSE | P8: FALSE | Q8: FALSE | R8: FALSE | S8: FALSE | T8: FALSE | U8: FALSE | V8: FALSE | W8: FALSE
B10: Expenditure | C10: 7000
B11: Required EBITDA | D11: =C16 -> 1506.15942 | E11: =D11*(1+$C$2)*E8 -> 1536.282609 | F11: =E11*(1+$C$2)*F8 -> 1567.008261 | G11: 1598.348426 | H11: 1630.315395 | I11: 1662.921703 | J11: 1696.180137 | K11: 1730.103739 | L11: 1764.705814 | M11: 1799.99993 | N11: 1835.999929 | O11: 0 | P11: 0 | Q11: 0 | R11: 0 | S11: 0 | T11: 0 | U11: 0 | V11: 0 | W11: 0
B12: Cash Flow | C12: =C11-C10 -> -7000 | D12: =D11-D10 -> 1506.15942 | E12: 1536.282609 | F12: 1567.008261 | G12: 1598.348426 | H12: 1630.315395 | I12: 1662.921703 | J12: 1696.180137 | K12: 1730.103739 | L12: 1764.705814 | M12: 1799.99993 | N12: 1835.999929 | O12: 0 | P12: 0 | Q12: 0 | R12: 0 | S12: 0 | T12: 0 | U12: 0 | V12: 0 | W12: 0
B14: Pre-tax IRR | C14: =IRR(12:12) -> 0.1987409156
B16: Function | C16: =ebitda_plane(C4,C3,C10,C2,C5) -> 1506.15942
B19: Depreciation | D19: =$C$10/$C$4*D8 -> 636.3636364 | E19: =$C$10/$C$4*E8 -> 636.3636364 | F19: 636.3636364 | G19: 636.3636364 | H19: 636.3636364 | I19: 636.3636364 | J19: 636.3636364 | K19: 636.3636364 | L19: 636.3636364 | M19: 636.3636364 | N19: 636.3636364 | O19: 0 | P19: 0 | Q19: 0 | R19: 0 | S19: 0 | T19: 0 | U19: 0 | V19: 0 | W19: 0
B20: EBIT | D20: =D11-D19 -> 869.7957839 | E20: =E11-E19 -> 899.9189723 | F20: 930.6446245 | G20: 961.9847897 | H20: 993.9517582 | I20: 1026.558066 | J20: 1059.8165 | K20: 1093.740103 | L20: 1128.342178 | M20: 1163.636294 | N20: 1199.636293 | O20: 0 | P20: 0 | Q20: 0 | R20: 0 | S20: 0 | T20: 0 | U20: 0 | V20: 0 | W20: 0
B21: Taxes | D21: =D20*$C$5 -> 347.9183136 | E21: =E20*$C$5 -> 359.9675889 | F21: 372.2578498 | G21: 384.7939159 | H21: 397.5807033 | I21: 410.6232265 | J21: 423.9266001 | K21: 437.4960412 | L21: 451.3368711 | M21: 465.4545176 | N21: 479.854517 | O21: 0 | P21: 0 | Q21: 0 | R21: 0 | S21: 0 | T21: 0 | U21: 0 | V21: 0 | W21: 0
B22: Cash Flow | D22: =D11-D21 -> 1158.241107 | E22: =E11-E21 -> 1176.31502 | F22: 1194.750411 | G22: 1213.55451 | H22: 1232.734691 | I22: 1252.298476 | J22: 1272.253536 | K22: 1292.607698 | L22: 1313.368943 | M22: 1334.545413 | N22: 1356.145412 | O22: 0 | P22: 0 | Q22: 0 | R22: 0 | S22: 0 | T22: 0 | U22: 0 | V22: 0 | W22: 0
B23: Net Cash Flow | C23: =C22-C10 -> -7000 | D23: =D22-D10 -> 1158.241107 | E23: 1176.31502 | F23: 1194.750411 | G23: 1213.55451 | H23: 1232.734691 | I23: 1252.298476 | J23: 1272.253536 | K23: 1292.607698 | L23: 1313.368943 | M23: 1334.545413 | N23: 1356.145412 | O23: 0 | P23: 0 | Q23: 0 | R23: 0 | S23: 0 | T23: 0 | U23: 0 | V23: 0 | W23: 0
B25: After Tax IRR | C25: =IRR(23:23) -> 0.1300005296
B27: Investment | C27: =C10 -> 7000 | D27: =C27-D19 -> 6363.636364 | E27: =D27-E19 -> 5727.272727 | F27: 5090.909091 | G27: 4454.545455 | H27: 3818.181818 | I27: 3181.818182 | J27: 2545.454545 | K27: 1909.090909 | L27: 1272.727273 | M27: 636.3636364 | N27: 0 | O27: 0 | P27: 0 | Q27: 0 | R27: 0 | S27: 0 | T27: 0 | U27: 0 | V27: 0 | W27: 0
B29: ROIC | D29: =IF(D27,D20*(1-C5)/C27) -> 0.07455392434 | E29: =IF(E27,E20*(1-D5)/D27) -> 0.1414158385 | F29: 0.1624935059 | G29: 0.188961298 | H29: 0.2231320274 | I29: 0.2688604459 | J29: 0.3330851858 | K29: 0.4296836119 | L29: 0.5910363788 | M29: 0.9142856596 | N29: FALSE | O29: FALSE | P29: FALSE | Q29: FALSE | R29: FALSE | S29: FALSE | T29: FALSE | U29: FALSE | V29: FALSE | W29: FALSE

Sheet Depreciation and Retirement
B2: Life | C2: 12 | E2: Final | F2: =C29 -> 9.276845958e-11
B3: Base Value | C3: 0.03133549582
B4: Historic Growth | C4: 0.15
B6: Plant in Service | C6: ='Financial Model'!M25 -> 112364.323
B7: Accum Depreciation | C7: =-'Financial Model'!M26 -> 23007.382
B9: Find Initial
D11: 1 | E11: =D11+1 -> 2 | F11: =E11+1 -> 3 | G11: 4 | H11: 5 | I11: 6 | J11: 7 | K11: 8 | L11: 9 | M11: 10 | N11: 11 | O11: 12 | P11: 13 | Q11: 14 | R11: 15 | S11: 16 | T11: 17
B12: Switch | C12: =C2 -> 12 | D12: =D11<=$C$12 -> TRUE | E12: =E11<=$C$12 -> TRUE | F12: TRUE | G12: TRUE | H12: TRUE | I12: TRUE | J12: TRUE | K12: TRUE | L12: TRUE | M12: TRUE | N12: TRUE | O12: TRUE | P12: FALSE | Q12: FALSE | R12: FALSE | S12: FALSE | T12: FALSE
B13: Final Year | D13: =D11=$C$2 -> FALSE | E13: =E11=$C$2 -> FALSE | F13: FALSE | G13: FALSE | H13: FALSE | I13: FALSE | J13: FALSE | K13: FALSE | L13: FALSE | M13: FALSE | N13: FALSE | O13: TRUE | P13: FALSE | Q13: FALSE | R13: FALSE | S13: FALSE | T13: FALSE
B15: Retirement Rate | D15: =C3 -> 0.03133549582 | E15: =D15*(1+$C$4)*E12 -> 0.0360358202 | F15: =E15*(1+$C$4)*F12 -> 0.04144119323 | G15: 0.04765737221 | H15: 0.05480597804 | I15: 0.06302687475 | J15: 0.07248090596 | K15: 0.08335304186 | L15: 0.09585599814 | M15: 0.1102343979 | N15: 0.1267695575 | O15: 0.1457849912 | P15: 0 | Q15: 0 | R15: 0 | S15: 0 | T15: 0
B17: Opening Balance | D17: =C19 -> 112364.323 | E17: =D19 -> 108843.3312 | F17: 104794.1907 | G17: 100137.6791 | H17: 94782.6907 | I17: 88624.45408 | J17: 81542.48197 | K17: 73398.21404 | L17: 64032.30592 | M17: 53261.51159 | N17: 40875.0981 | O17: 26630.72259 | P17: 10249.69075 | Q17: 10249.69075 | R17: 10249.69075 | S17: 10249.69075 | T17: 10249.69075
B18: Less: Retirement | D18: =D15*$C$6 -> 3520.991774 | E18: =E15*$C$6 -> 4049.14054 | F18: 4656.511621 | G18: 5354.988365 | H18: 6158.236619 | I18: 7081.972112 | J18: 8144.267929 | K18: 9365.908118 | L18: 10770.79434 | M18: 12386.41349 | N18: 14244.37551 | O18: 16381.03184 | P18: 0 | Q18: 0 | R18: 0 | S18: 0 | T18: 0
B19: Closing Balance | C19: =C6 -> 112364.323 | D19: =D17-D18 -> 108843.3312 | E19: =E17-E18 -> 104794.1907 | F19: 100137.6791 | G19: 94782.6907 | H19: 88624.45408 | I19: 81542.48197 | J19: 73398.21404 | K19: 64032.30592 | L19: 53261.51159 | M19: 40875.0981 | N19: 26630.72259 | O19: 10249.69075 | P19: 10249.69075 | Q19: 10249.69075 | R19: 10249.69075 | S19: 10249.69075 | T19: 10249.69075
B21: Depreciation | C21: =1/C2 -> 0.08333333333 | D21: =$C$21*D17*D12 -> 9363.693583 | E21: =$C$21*E17*E12 -> 9070.277602 | F21: 8732.849224 | G21: 8344.806589 | H21: 7898.557558 | I21: 7385.371173 | J21: 6795.206831 | K21: 6116.517837 | L21: 5336.025493 | M21: 4438.459299 | N21: 3406.258175 | O21: 2219.226882 | P21: 0 | Q21: 0 | R21: 0 | S21: 0 | T21: 0
B23: Accumulated Depreciation
B24: Opening Balance | D24: =C27 -> 23007.382 | E24: =D27 -> 28850.08381 | F24: 33871.22087 | G24: 37947.55847 | H24: 40937.3767 | I24: 42677.69764 | J24: 42981.0967 | K24: 41632.0356 | L24: 38382.64532 | M24: 32947.87648 | N24: 24999.92229 | O24: 14161.80495 | P24: 9.276845958e-11 | Q24: 9.276845958e-11 | R24: 9.276845958e-11 | S24: 9.276845958e-11 | T24: 9.276845958e-11
B25: Add: Depreciation | D25: =D21 -> 9363.693583 | E25: =E21 -> 9070.277602 | F25: 8732.849224 | G25: 8344.806589 | H25: 7898.557558 | I25: 7385.371173 | J25: 6795.206831 | K25: 6116.517837 | L25: 5336.025493 | M25: 4438.459299 | N25: 3406.258175 | O25: 2219.226882 | P25: 0 | Q25: 0 | R25: 0 | S25: 0 | T25: 0
B26: Less: Retirement | D26: =D18 -> 3520.991774 | E26: =E18 -> 4049.14054 | F26: 4656.511621 | G26: 5354.988365 | H26: 6158.236619 | I26: 7081.972112 | J26: 8144.267929 | K26: 9365.908118 | L26: 10770.79434 | M26: 12386.41349 | N26: 14244.37551 | O26: 16381.03184 | P26: 0 | Q26: 0 | R26: 0 | S26: 0 | T26: 0
B27: Closing Balance | C27: =C7 -> 23007.382 | D27: =D24+D25-D26 -> 28850.08381 | E27: =E24+E25-E26 -> 33871.22087 | F27: 37947.55847 | G27: 40937.3767 | H27: 42677.69764 | I27: 42981.0967 | J27: 41632.0356 | K27: 38382.64532 | L27: 32947.87648 | M27: 24999.92229 | N27: 14161.80495 | O27: 9.276845958e-11 | P27: 9.276845958e-11 | Q27: 9.276845958e-11 | R27: 9.276845958e-11 | S27: 9.276845958e-11 | T27: 9.276845958e-11
B29: End Value | C29: =SUM(D29:T29) -> 9.276845958e-11 | D29: =D27*D13 -> 0 | E29: =E27*E13 -> 0 | F29: 0 | G29: 0 | H29: 0 | I29: 0 | J29: 0 | K29: 0 | L29: 0 | M29: 0 | N29: 0 | O29: 9.276845958e-11 | P29: 0 | Q29: 0 | R29: 0 | S29: 0 | T29: 0
B32: Net Plant | D32: =D17-D24 -> 89356.941 | E32: =E17-E24 -> 79993.24742 | F32: 70922.96981 | G32: 62190.12059 | H32: 53845.314 | I32: 45946.75644 | J32: 38561.38527 | K32: 31766.17844 | L32: 25649.6606 | M32: 20313.63511 | N32: 15875.17581 | O32: 12468.91764 | P32: 10249.69075 | Q32: 10249.69075 | R32: 10249.69075 | S32: 10249.69075 | T32: 10249.69075
B33: Net Plant Depreciation Rate | D33: =D21/D32 -> 0.1047897732 | E33: =E21/E32 -> 0.1133880408 | F33: 0.1231314657 | G33: 0.1341821902 | H33: 0.1466897854 | I33: 0.160737596 | J33: 0.1762179129 | K33: 0.1925481168 | L33: 0.2080349357 | M33: 0.2184965554 | N33: 0.2145650678 | O33: 0.1779807155 | P33: 0 | Q33: 0 | R33: 0 | S33: 0 | T33: 0

Sheet Marginal Price Function
B2: Function ebitda_plane(life, target_irr, investment, inflation_rate, tax_rate)
B4: Dim cash_flow(100)
B5: Dim ebitda_inf(100)
B7: Start = 0
B8: finish = investment
B9: increment = (finish - Start) / 20
B10: Count = 1
B12: restart:
B14: For ebitda = Start To finish Step increment
B15: For i = 1 To life + 1
B16: If i = 1 Then cash_flow(i) = -investment
B18: If i = 2 Then
B19: ebitda_inf(i) = ebitda
B20: End If
B22: If i > 2 Then
B23: ebitda_inf(i) = ebitda_inf(i - 1) * (1 + inflation_rate)
B24: End If
B26: If i >= 2 Then
B27: If life <> 0 Then depr_inv = investment / life
B28: ebt = ebitda_inf(i) - depr_inv
B29: taxes = ebt * tax_rate
B30: cash_flow(i) = ebitda_inf(i) - taxes
B31: End If
B32: Next i
B34: On Error GoTo resume1:
B35: computed_irr = WorksheetFunction.IRR(cash_flow, 0.01)
B37: If computed_irr > target_irr Then
B38: Start = ebitda - increment
B39: finish = ebitda
B40: increment = (finish - Start) / 20
B42: Count = Count + 1
B43: If Count > 10 Then Exit Function
B45: If Abs(target_irr - computed_irr) < 0.00001 Then
B46: ebitda_plane = ebitda
B47: Exit Function
B48: Else
B49: GoTo restart
B50: End If
B52: End If
B54: resume1:
B55: Next ebitda
B57: End Function
